Body Name,Service Area Categorisation,Service Area Division,Purpose of Expenditure,Payment Date,Trans No,Amount in �,Capital or Revenue,Supplier(T),Merchant Category
Peterborough City Council,People & Communities,Commissioning,Services,27/08/2019,30259247,1559.10,Revenue,"Advanced Child Safeguarding Services Ltd, t/a Risk Solutions",Hired Services
Peterborough City Council,People & Communities,Community Capacity,Energy Costs,29/10/2019,30249671,-6533.64,Revenue,Total Gas & Power Ltd,Gas
Peterborough City Council,People & Communities,Community Capacity,Energy Costs,29/10/2019,30249671,-6287.04,Revenue,Total Gas & Power Ltd,Gas
Peterborough City Council,People & Communities,Independent Sector Placements,Services,31/10/2019,30259281,3445.95,Revenue,Askham Village Community Ltd,Respite Care
Peterborough City Council,People & Communities,Housing,Services,02/12/2019,30259297,8825.55,Revenue,Eastfield Guesthouse,Temporary Accommodation Costs
Peterborough City Council,Resources,Corporate Services,Services,10/12/2019,30259220,17075.00,Revenue,KPMG LLP,Audit Fees
Peterborough City Council,Resources,Commercial Propety,Other Establishments,12/12/2019,30259003,46951.30,Revenue,UK Power Networks (operations) Ltd,Third Party Payments - Contract
Peterborough City Council,Resources,PSSP Retained Services,Services,15/12/2019,30259295,1993.25,Revenue,Whistl UK Ltd,Postage
Peterborough City Council,Resources,PSSP Retained Services,Services,15/12/2019,30259296,927.57,Revenue,Whistl UK Ltd,Postage
Peterborough City Council,People & Communities,Targeted Youth Service,Other Establishments,17/12/2019,30259228,55102.00,Revenue,Cambridgeshire County Council,Contributions
Peterborough City Council,Resources,Strategic Projects,Services,17/12/2019,30259346,8959.00,Revenue,Greenwoods Solicitors LLP,Consultants Fees
Peterborough City Council,Customer & Digital Services,ICT,Members Allowances,17/12/2019,30259224,-1883.05,Revenue,Serco Ltd,Computer Software
Peterborough City Council,People & Communities,Housing,Services,17/12/2019,30259225,-1640.00,Revenue,Serco Ltd,Financial Assistance
Peterborough City Council,Customer & Digital Services,ICT,Members Allowances,17/12/2019,30259226,-1557.70,Revenue,Serco Ltd,Computer Software
Peterborough City Council,Customer & Digital Services,ICT,Members Allowances,17/12/2019,30259577,1557.70,Revenue,Serco Ltd,Computer Software
Peterborough City Council,Place & Economy,Westcombe Engineering,Services,18/12/2019,30259288,3747.20,Revenue,AALCO,Materials
Peterborough City Council,Chief Executives,HR WFD & Training,Interview & Training Expenses,18/12/2019,30259290,500.00,Revenue,Breaking the Cycle Consultancy Ltd,Training
Peterborough City Council,Corporate,Corporate,Non Revenue,18/12/2019,30259282,3633.79,Capital,British Telecom PLC,Infrastructure
Peterborough City Council,People & Communities,Commissioning,Services,18/12/2019,30259287,543.50,Revenue,Carter Brown The Expert Service Limited,Hired Services
Peterborough City Council,Place & Economy,Planning Compliance,Agency Staff,18/12/2019,30259289,1286.25,Revenue,Park Avenue Recruitment Limited,External Temporary Staff
Peterborough City Council,Place & Economy,Westcombe Engineering,Services,19/12/2019,30259343,1188.30,Revenue,AALCO,Materials
Peterborough City Council,People & Communities,Commissioning,Services,27/12/2019,30259362,580.00,Revenue,CAPITA Translation and Interpreting,Interpretation Expenses
Peterborough City Council,People & Communities,Commissioning,Services,27/12/2019,30259365,2275.13,Revenue,CAPITA Translation and Interpreting,Interpretation Expenses
Peterborough City Council,People & Communities,Commissioning,Services,27/12/2019,30259368,728.75,Revenue,CAPITA Translation and Interpreting,Interpretation Expenses
Peterborough City Council,People & Communities,Therapy/Reablement/Community Equipment,Agency Staff,29/12/2019,30259309,2464.20,Revenue,Sanctuary Personnel Ltd,External Temporary Staff
Peterborough City Council,People & Communities,Therapy/Reablement/Community Equipment,Agency Staff,29/12/2019,30259311,1531.81,Revenue,Sanctuary Personnel Ltd,External Temporary Staff
Peterborough City Council,People & Communities,Community Team,Agency Staff,29/12/2019,30259313,5000.00,Revenue,Sanctuary Personnel Ltd,External Temporary Staff
Peterborough City Council,People & Communities,Therapy/Reablement/Community Equipment,Agency Staff,29/12/2019,30259315,3144.30,Revenue,Sanctuary Personnel Ltd,External Temporary Staff
Peterborough City Council,People & Communities,Access to Resources & Specialist Commissioning,Agency Staff,29/12/2019,30259316,8050.00,Revenue,Sanctuary Personnel Ltd,External Temporary Staff
Peterborough City Council,People & Communities,Special Educational Needs / Inclusion,Agency Staff,29/12/2019,30259317,3366.00,Revenue,Sanctuary Personnel Ltd,External Temporary Staff
Peterborough City Council,People & Communities,Therapy/Reablement/Community Equipment,Agency Staff,29/12/2019,30259319,1748.25,Revenue,Sanctuary Personnel Ltd,External Temporary Staff
Peterborough City Council,People & Communities,Therapy/Reablement/Community Equipment,Agency Staff,29/12/2019,30259321,2097.90,Revenue,Sanctuary Personnel Ltd,External Temporary Staff
Peterborough City Council,People & Communities,Commissioning Team,Agency Staff,29/12/2019,30259323,11322.00,Revenue,Sanctuary Personnel Ltd,External Temporary Staff
Peterborough City Council,People & Communities,Special Educational Needs / Inclusion,Agency Staff,29/12/2019,30259326,1571.50,Revenue,Sanctuary Personnel Ltd,External Temporary Staff
Peterborough City Council,People & Communities,Special Educational Needs / Inclusion,Agency Staff,29/12/2019,30259326,4038.50,Revenue,Sanctuary Personnel Ltd,External Temporary Staff
Peterborough City Council,Place & Economy,"Markets, Tourism & Events",Services,02/01/2020,30260086,5350.00,Revenue,Field and Lawn Ltd,Conferences
Peterborough City Council,People & Communities,Access to Resources & Specialist Commissioning,Schools,03/01/2020,30257811,14392.99,Revenue,4D Care Ltd,Boarding Out Fees
Peterborough City Council,People & Communities,Access to Resources & Specialist Commissioning,Schools,03/01/2020,30257812,15278.66,Revenue,4D Care Ltd,Boarding Out Fees
Peterborough City Council,People & Communities,HTS & CSC Transport,Contract Hire and Operating Leases,03/01/2020,8000158147,378.01,Revenue,A2B Euro Cars,Hired Transport
Peterborough City Council,People & Communities,HTS & CSC Transport,Contract Hire and Operating Leases,03/01/2020,8000158147,377.99,Revenue,A2B Euro Cars,Hired Transport
Peterborough City Council,People & Communities,HTS & CSC Transport,Contract Hire and Operating Leases,03/01/2020,8000158148,805.60,Revenue,A2B Euro Cars,Hired Transport
Peterborough City Council,People & Communities,Regulatory Services,Services,03/01/2020,30257285,1243.80,Revenue,Acoustic Calibration Services Ltd,Maintenance
Peterborough City Council,People & Communities,Independent Sector Placements,Services,03/01/2020,30258320,5574.47,Revenue,Action on Hearing Loss (Care Fees),Residential Care
Peterborough City Council,People & Communities,Clare Lodge,Repair & Maintenance of Buildings,03/01/2020,30255957,1793.91,Revenue,Adcock Refrig/air Conditioning Ltd,Maintanence
Peterborough City Council,People & Communities,Clare Lodge,Repair & Maintenance of Buildings,03/01/2020,30255959,4399.22,Revenue,Adcock Refrig/air Conditioning Ltd,Maintenance
Peterborough City Council,People & Communities,Community Team,Interview & Training Expenses,03/01/2020,30258284,1400.00,Revenue,Alex Kelly Ltd,Training
Peterborough City Council,People & Communities,Community Capacity,Services,03/01/2020,30257712,691.75,Revenue,Allia Future Business Centres Limited,Conferences
Peterborough City Council,People & Communities,Independent Sector Placements,Services,03/01/2020,30254003,2814.92,Revenue,Alysia Caring Ltd T/a Cherry Blossom care Home,Residential Care
Peterborough City Council,People & Communities,Independent Sector Placements,Services,03/01/2020,30254004,9693.75,Revenue,Alysia Caring Ltd T/a Cherry Blossom care Home,Residential Care
Peterborough City Council,People & Communities,Independent Sector Placements,Services,03/01/2020,30258270,3049.72,Revenue,Alysia Caring Ltd T/a Cherry Blossom care Home,Residential Care
Peterborough City Council,People & Communities,Independent Sector Placements,Services,03/01/2020,30258275,3049.72,Revenue,Alysia Caring Ltd T/a Cherry Blossom care Home,Residential Care
Peterborough City Council,People & Communities,Cultural Services,Water Services,03/01/2020,30257877,19.37,Revenue,Anglian Water Business National,Water
Peterborough City Council,People & Communities,Cultural Services,Water Services,03/01/2020,30257877,160.72,Revenue,Anglian Water Business National,Water
Peterborough City Council,People & Communities,Cultural Services,Water Services,03/01/2020,30257877,1690.12,Revenue,Anglian Water Business National,Water
Peterborough City Council,Place & Economy,"Markets, Tourism & Events",Water Services,03/01/2020,30257877,6.19,Revenue,Anglian Water Business National,Water
Peterborough City Council,People & Communities,Parking Services,Water Services,03/01/2020,30257877,24.77,Revenue,Anglian Water Business National,Water
Peterborough City Council,Place & Economy,Waste & Operational Svs Mgmt,Water Services,03/01/2020,30257877,42.29,Revenue,Anglian Water Business National,Water
Peterborough City Council,Place & Economy,Waste & Operational Svs Mgmt,Water Services,03/01/2020,30257877,244.27,Revenue,Anglian Water Business National,Water
Peterborough City Council,Place & Economy,Waste & Operational Svs Mgmt,Water Services,03/01/2020,30257877,5627.33,Revenue,Anglian Water Business National,Water
Peterborough City Council,Place & Economy,Waste & Operational Svs Mgmt,Water Services,03/01/2020,30257877,42.49,Revenue,Anglian Water Business National,Water
Peterborough City Council,Place & Economy,Waste & Operational Svs Mgmt,Water Services,03/01/2020,30257877,80.04,Revenue,Anglian Water Business National,Water
Peterborough City Council,Place & Economy,Waste & Operational Svs Mgmt,Water Services,03/01/2020,30257877,393.06,Revenue,Anglian Water Business National,Water
Peterborough City Council,People & Communities,Community Capacity,Water Services,03/01/2020,30257877,23.68,Revenue,Anglian Water Business National,Water
Peterborough City Council,Place & Economy,"Markets, Tourism & Events",Water Services,03/01/2020,30257878,194.40,Revenue,Anglian Water Business National,Water
Peterborough City Council,People & Communities,Cultural Services,Water Services,03/01/2020,30257878,16.21,Revenue,Anglian Water Business National,Water
Peterborough City Council,People & Communities,Clare Lodge,Water Services,03/01/2020,30257878,1569.31,Revenue,Anglian Water Business National,Water
Peterborough City Council,Place & Economy,"Markets, Tourism & Events",Water Services,03/01/2020,30257879,201.42,Revenue,Anglian Water Business National,Water
Peterborough City Council,Place & Economy,Waste & Operational Svs Mgmt,Water Services,03/01/2020,30257879,419.33,Revenue,Anglian Water Business National,Water
Peterborough City Council,People & Communities,Independent Sector Placements,Services,03/01/2020,30258268,1006.27,Revenue,Athena (Ashlynn Grange),Respite Care
Peterborough City Council,People & Communities,Independent Sector Placements,Services,03/01/2020,30256481,1824.64,Revenue,Avery Homes (Nelson) Ltd,Residential Care
Peterborough City Council,People & Communities,Independent Sector Placements,Services,03/01/2020,30256487,1602.60,Revenue,Avery Homes (Nelson) Ltd,Residential Care
Peterborough City Council,People & Communities,Independent Sector Placements,Services,03/01/2020,30258319,854.95,Revenue,Avery House (Peterborough) t/a Brighterkind,Respite Care
Peterborough City Council,People & Communities,Finance,Agency Staff,03/01/2020,30258462,4764.69,Revenue,Badenoch & Clark Ltd,External Temporary Staff
Peterborough City Council,Resources,Strategic Projects,Energy Costs,03/01/2020,30257774,10931.02,Revenue,British Gas Business,Electricity
Peterborough City Council,People & Communities,Child Health,Energy Costs,03/01/2020,30257854,1221.00,Revenue,British Gas Business,Electricity
Peterborough City Council,People & Communities,Access to Resources & Specialist Commissioning,Schools,03/01/2020,30257724,4388.05,Revenue,By The Bridge,Boarding Out Fees
Peterborough City Council,People & Communities,Access to Resources & Specialist Commissioning,Schools,03/01/2020,30257725,4475.78,Revenue,By The Bridge,Boarding Out Fees
Peterborough City Council,People & Communities,Access to Resources & Specialist Commissioning,Schools,03/01/2020,30257728,4619.00,Revenue,By The Bridge,Boarding Out Fees
Peterborough City Council,People & Communities,Access to Resources & Specialist Commissioning,Schools,03/01/2020,30257730,4711.38,Revenue,By The Bridge,Boarding Out Fees
Peterborough City Council,People & Communities,OP/PD/SI,Other Establishments,03/01/2020,30258730,2149.00,Revenue,Cambridgeshire Deaf Association,Grant-Third Party
Peterborough City Council,People & Communities,Community Team,Services,03/01/2020,30257992,3.48,Revenue,CAPITA Translation and Interpreting,Materials
Peterborough City Council,People & Communities,Community Team,Services,03/01/2020,30257992,851.01,Revenue,CAPITA Translation and Interpreting,Materials
Peterborough City Council,People & Communities,Independent Sector Placements,Services,03/01/2020,30258276,793.00,Revenue,Caring Crew Ltd,Home Care
Peterborough City Council,People & Communities,OP/PD/SI,Other Establishments,03/01/2020,30258302,40700.00,Revenue,Caring Together Charity,Third Party Payments - Contract
Peterborough City Council,People & Communities,Commissioning,Services,03/01/2020,30256458,1633.30,Revenue,Carter Brown The Expert Service Limited,Hired Services
Peterborough City Council,People & Communities,Commissioning,Services,03/01/2020,30258401,4031.50,Revenue,Carter Brown The Expert Service Limited,Hired Services
Peterborough City Council,People & Communities,Home Services Delivery Model,Customer and client receipts - Fees & Charges,03/01/2020,30256739,-1277.40,Revenue,Casbon Building Services,Grant Payment
Peterborough City Council,Corporate,Corporate,Non Revenue,03/01/2020,30256739,9462.58,Capital,Casbon Building Services,Grant Payment
Peterborough City Council,People & Communities,Home Services Delivery Model,Customer and client receipts - Fees & Charges,03/01/2020,30256743,-825.00,Revenue,Casbon Building Services,Grant Payment
Peterborough City Council,Corporate,Corporate,Non Revenue,03/01/2020,30256743,6325.00,Capital,Casbon Building Services,Grant Payment
Peterborough City Council,People & Communities,Home Services Delivery Model,Customer and client receipts - Fees & Charges,03/01/2020,30257847,-1342.20,Revenue,Casbon Building Services,Grant Payment
Peterborough City Council,Corporate,Corporate,Non Revenue,03/01/2020,30257847,10290.20,Capital,Casbon Building Services,Grant Payment
Peterborough City Council,People & Communities,Home Services Delivery Model,Customer and client receipts - Fees & Charges,03/01/2020,30257848,-952.05,Revenue,Casbon Building Services,Grant Payment
Peterborough City Council,Corporate,Corporate,Non Revenue,03/01/2020,30257848,7343.85,Capital,Casbon Building Services,Grant Payment
Peterborough City Council,People & Communities,Home Services Delivery Model,Customer and client receipts - Fees & Charges,03/01/2020,30258125,-94.65,Revenue,Casbon Building Services,Grant Payment
Peterborough City Council,Corporate,Corporate,Non Revenue,03/01/2020,30258125,725.65,Capital,Casbon Building Services,Grant Payment
Peterborough City Council,People & Communities,CSC Quality Assurance,Services,03/01/2020,30255041,37.42,Revenue,Children & Families Looked After Children (Imprest),Financial Assistance
Peterborough City Council,People & Communities,Children's Social Care,Services,03/01/2020,30255041,6.00,Revenue,Children & Families Looked After Children (Imprest),Financial Assistance
Peterborough City Council,People & Communities,Access to Resources & Specialist Commissioning,Services,03/01/2020,30255041,241.45,Revenue,Children & Families Looked After Children (Imprest),Financial Assistance
Peterborough City Council,People & Communities,Children's Social Care,Services,03/01/2020,30255041,9.00,Revenue,Children & Families Looked After Children (Imprest),Financial Assistance
Peterborough City Council,People & Communities,Children's Social Care,Services,03/01/2020,30255041,140.00,Revenue,Children & Families Looked After Children (Imprest),Financial Assistance
Peterborough City Council,People & Communities,Children's Social Care,Services,03/01/2020,30255041,8.33,Revenue,Children & Families Looked After Children (Imprest),Financial Assistance
Peterborough City Council,People & Communities,Access to Resources & Specialist Commissioning,Services,03/01/2020,30255041,1295.08,Revenue,Children & Families Looked After Children (Imprest),Financial Assistance
Peterborough City Council,People & Communities,Access to Resources & Specialist Commissioning,Services,03/01/2020,30255041,-0.49,Revenue,Children & Families Looked After Children (Imprest),Financial Assistance
Peterborough City Council,People & Communities,Children's Social Care,Services,03/01/2020,30255041,64.90,Revenue,Children & Families Looked After Children (Imprest),Financial Assistance
Peterborough City Council,People & Communities,Children's Social Care,Services,03/01/2020,30255041,91.90,Revenue,Children & Families Looked After Children (Imprest),Financial Assistance
Peterborough City Council,People & Communities,Children's Social Care,Services,03/01/2020,30255041,144.95,Revenue,Children & Families Looked After Children (Imprest),Financial Assistance
Peterborough City Council,People & Communities,Children's Social Care,Services,03/01/2020,30255041,50.00,Revenue,Children & Families Looked After Children (Imprest),Financial Assistance
Peterborough City Council,People & Communities,Children's Social Care,Services,03/01/2020,30255041,124.53,Revenue,Children & Families Looked After Children (Imprest),Financial Assistance
Peterborough City Council,People & Communities,Therapy/Reablement/Community Equipment,Services,03/01/2020,30257538,11.00,Revenue,Children & Families Looked After Children (Imprest),Financial Assistance
Peterborough City Council,People & Communities,Children's Social Care,Services,03/01/2020,30257538,10.00,Revenue,Children & Families Looked After Children (Imprest),Financial Assistance
Peterborough City Council,People & Communities,Children's Social Care,Services,03/01/2020,30257538,82.80,Revenue,Children & Families Looked After Children (Imprest),Financial Assistance
Peterborough City Council,People & Communities,Access to Resources & Specialist Commissioning,Services,03/01/2020,30257538,155.80,Revenue,Children & Families Looked After Children (Imprest),Financial Assistance
Peterborough City Council,People & Communities,Children's Social Care,Services,03/01/2020,30257538,-35.00,Revenue,Children & Families Looked After Children (Imprest),Financial Assistance
Peterborough City Council,People & Communities,Children's Social Care,Services,03/01/2020,30257538,156.64,Revenue,Children & Families Looked After Children (Imprest),Financial Assistance
Peterborough City Council,People & Communities,Children's Social Care,Services,03/01/2020,30257538,57.90,Revenue,Children & Families Looked After Children (Imprest),Financial Assistance
Peterborough City Council,People & Communities,Children's Social Care,Services,03/01/2020,30257538,241.94,Revenue,Children & Families Looked After Children (Imprest),Financial Assistance
Peterborough City Council,People & Communities,Access to Resources & Specialist Commissioning,Services,03/01/2020,30257538,1220.10,Revenue,Children & Families Looked After Children (Imprest),Financial Assistance
Peterborough City Council,People & Communities,Commissioning - CSC,Services,03/01/2020,30257763,148000.00,Revenue,CHUMS Social Enterprise CIC,Hired Services
Peterborough City Council,People & Communities,HTS & CSC Transport,Contract Hire and Operating Leases,03/01/2020,8000158157,840.00,Revenue,City Cabs Pboro Ltd,Hired Transport
Peterborough City Council,People & Communities,Independent Sector Placements,Services,03/01/2020,30257837,3762.00,Revenue,Community Care Solutions Ltd,Residential Care
Peterborough City Council,People & Communities,Access to Resources & Specialist Commissioning,Schools,03/01/2020,30257704,3348.00,Revenue,Compass Fostering Central Limited,Boarding Out Fees
Peterborough City Council,People & Communities,Access to Resources & Specialist Commissioning,Schools,03/01/2020,30257705,3321.34,Revenue,Compass Fostering Central Limited,Boarding Out Fees
Peterborough City Council,People & Communities,Access to Resources & Specialist Commissioning,Schools,03/01/2020,30257706,3472.00,Revenue,Compass Fostering Central Limited,Boarding Out Fees
Peterborough City Council,People & Communities,Access to Resources & Specialist Commissioning,Schools,03/01/2020,30257707,3238.31,Revenue,Compass Fostering Central Limited,Boarding Out Fees
Peterborough City Council,People & Communities,Access to Resources & Specialist Commissioning,Schools,03/01/2020,30257708,3675.67,Revenue,Compass Fostering Central Limited,Boarding Out Fees
Peterborough City Council,People & Communities,Access to Resources & Specialist Commissioning,Schools,03/01/2020,30257723,3764.33,Revenue,Compass Fostering South Limited,Boarding Out Fees
Peterborough City Council,People & Communities,School Infrastructure,Energy Costs,03/01/2020,30258132,76.18,Revenue,Corona Energy Retail 4 Limited,Gas
Peterborough City Council,People & Communities,Commissioning,Energy Costs,03/01/2020,30258132,125.86,Revenue,Corona Energy Retail 4 Limited,Gas
Peterborough City Council,Resources,Office Accomodation,Energy Costs,03/01/2020,30258132,823.40,Revenue,Corona Energy Retail 4 Limited,Gas
Peterborough City Council,Place & Economy,Westcombe Engineering,Energy Costs,03/01/2020,30258132,147.89,Revenue,Corona Energy Retail 4 Limited,Gas
Peterborough City Council,Place & Economy,Westcombe Engineering,Energy Costs,03/01/2020,30258132,388.63,Revenue,Corona Energy Retail 4 Limited,Gas
Peterborough City Council,People & Communities,Cultural Services,Energy Costs,03/01/2020,30258132,1678.37,Revenue,Corona Energy Retail 4 Limited,Gas
Peterborough City Council,People & Communities,Cultural Services,Energy Costs,03/01/2020,30258132,119.03,Revenue,Corona Energy Retail 4 Limited,Gas
Peterborough City Council,People & Communities,Cultural Services,Energy Costs,03/01/2020,30258132,156.19,Revenue,Corona Energy Retail 4 Limited,Gas
Peterborough City Council,People & Communities,Cultural Services,Energy Costs,03/01/2020,30258132,879.10,Revenue,Corona Energy Retail 4 Limited,Gas
Peterborough City Council,People & Communities,Cultural Services,Energy Costs,03/01/2020,30258132,483.61,Revenue,Corona Energy Retail 4 Limited,Gas
Peterborough City Council,Resources,Office Accomodation,Energy Costs,03/01/2020,30258132,176.12,Revenue,Corona Energy Retail 4 Limited,Gas
Peterborough City Council,People & Communities,Block Contracts,Energy Costs,03/01/2020,30258132,107.02,Revenue,Corona Energy Retail 4 Limited,Gas
Peterborough City Council,Place & Economy,Waste & Operational Svs Mgmt,Energy Costs,03/01/2020,30258328,339.26,Revenue,Corona Energy Retail 4 Limited,Gas
Peterborough City Council,People & Communities,Cultural Services,Energy Costs,03/01/2020,30258328,1139.20,Revenue,Corona Energy Retail 4 Limited,Gas
Peterborough City Council,People & Communities,Cultural Services,Energy Costs,03/01/2020,30258328,2197.26,Revenue,Corona Energy Retail 4 Limited,Gas
Peterborough City Council,People & Communities,Cultural Services,Energy Costs,03/01/2020,30258328,367.20,Revenue,Corona Energy Retail 4 Limited,Gas
Peterborough City Council,People & Communities,Cultural Services,Energy Costs,03/01/2020,30258328,22.58,Revenue,Corona Energy Retail 4 Limited,Gas
Peterborough City Council,Resources,Office Accomodation,Energy Costs,03/01/2020,30258328,5178.01,Revenue,Corona Energy Retail 4 Limited,Gas
Peterborough City Council,Resources,Office Accomodation,Energy Costs,03/01/2020,30258328,101.70,Revenue,Corona Energy Retail 4 Limited,Gas
Peterborough City Council,Resources,Commercial Propety,Energy Costs,03/01/2020,30258328,2639.31,Revenue,Corona Energy Retail 4 Limited,Gas
Peterborough City Council,Resources,Commercial Propety,Energy Costs,03/01/2020,30258328,-543.69,Revenue,Corona Energy Retail 4 Limited,Gas
Peterborough City Council,Resources,Commercial Propety,Energy Costs,03/01/2020,30258328,494.31,Revenue,Corona Energy Retail 4 Limited,Gas
Peterborough City Council,Resources,Commercial Propety,Energy Costs,03/01/2020,30258328,632.58,Revenue,Corona Energy Retail 4 Limited,Gas
Peterborough City Council,People & Communities,Cultural Services,Energy Costs,03/01/2020,30258328,284.96,Revenue,Corona Energy Retail 4 Limited,Gas
Peterborough City Council,People & Communities,Community Capacity,Energy Costs,03/01/2020,30258476,29.28,Revenue,Corona Energy Retail 4 Limited,Gas
Peterborough City Council,People & Communities,PFI,Energy Costs,03/01/2020,30258476,3446.30,Revenue,Corona Energy Retail 4 Limited,Gas
Peterborough City Council,People & Communities,PFI,Energy Costs,03/01/2020,30258476,733.26,Revenue,Corona Energy Retail 4 Limited,Gas
Peterborough City Council,People & Communities,PFI,Energy Costs,03/01/2020,30258476,2770.66,Revenue,Corona Energy Retail 4 Limited,Gas
Peterborough City Council,People & Communities,PFI,Energy Costs,03/01/2020,30258476,1021.36,Revenue,Corona Energy Retail 4 Limited,Gas
Peterborough City Council,People & Communities,Children's Social Care,Energy Costs,03/01/2020,30258476,203.26,Revenue,Corona Energy Retail 4 Limited,Gas
Peterborough City Council,People & Communities,Children's Social Care,Energy Costs,03/01/2020,30258476,107.91,Revenue,Corona Energy Retail 4 Limited,Gas
Peterborough City Council,People & Communities,Child Health,Energy Costs,03/01/2020,30258476,219.37,Revenue,Corona Energy Retail 4 Limited,Gas
Peterborough City Council,People & Communities,Cultural Services,Energy Costs,03/01/2020,30258476,163.00,Revenue,Corona Energy Retail 4 Limited,Gas
Peterborough City Council,People & Communities,Cultural Services,Energy Costs,03/01/2020,30258476,12.00,Revenue,Corona Energy Retail 4 Limited,Gas
Peterborough City Council,People & Communities,Cultural Services,Energy Costs,03/01/2020,30258476,23.96,Revenue,Corona Energy Retail 4 Limited,Gas
Peterborough City Council,Place & Economy,Waste & Operational Svs Mgmt,Energy Costs,03/01/2020,30258476,64.80,Revenue,Corona Energy Retail 4 Limited,Gas
Peterborough City Council,Place & Economy,Waste & Operational Svs Mgmt,Energy Costs,03/01/2020,30258477,350.47,Revenue,Corona Energy Retail 4 Limited,Gas
Peterborough City Council,People & Communities,Cultural Services,Energy Costs,03/01/2020,30258477,100.55,Revenue,Corona Energy Retail 4 Limited,Gas
Peterborough City Council,People & Communities,Cultural Services,Energy Costs,03/01/2020,30258477,8125.74,Revenue,Corona Energy Retail 4 Limited,Gas
Peterborough City Council,People & Communities,Cultural Services,Energy Costs,03/01/2020,30258477,54.73,Revenue,Corona Energy Retail 4 Limited,Gas
Peterborough City Council,Resources,Bereavement Service,Energy Costs,03/01/2020,30258477,128.89,Revenue,Corona Energy Retail 4 Limited,Gas
Peterborough City Council,Resources,Bereavement Service,Energy Costs,03/01/2020,30258477,4258.23,Revenue,Corona Energy Retail 4 Limited,Gas
Peterborough City Council,People & Communities,Child Health,Energy Costs,03/01/2020,30258477,361.17,Revenue,Corona Energy Retail 4 Limited,Gas
Peterborough City Council,People & Communities,Clare Lodge,Energy Costs,03/01/2020,30258477,1040.59,Revenue,Corona Energy Retail 4 Limited,Gas
Peterborough City Council,Resources,Commercial Propety,Energy Costs,03/01/2020,30258477,186.15,Revenue,Corona Energy Retail 4 Limited,Gas
Peterborough City Council,People & Communities,PFI,Energy Costs,03/01/2020,30258477,49.05,Revenue,Corona Energy Retail 4 Limited,Gas
Peterborough City Council,People & Communities,Community Capacity,Energy Costs,03/01/2020,30258477,122.90,Revenue,Corona Energy Retail 4 Limited,Gas
Peterborough City Council,People & Communities,Community Capacity,Energy Costs,03/01/2020,30258477,48.73,Revenue,Corona Energy Retail 4 Limited,Gas
Peterborough City Council,People & Communities,Independent Sector Placements,Services,03/01/2020,30257924,1138.33,Revenue,Cross Keys Homes,Home Care
Peterborough City Council,People & Communities,Independent Sector Placements,Services,03/01/2020,30257926,1132.56,Revenue,Cross Keys Homes,Home Care
Peterborough City Council,People & Communities,Independent Sector Placements,Services,03/01/2020,30257930,521.45,Revenue,Cross Keys Homes,Home Care
Peterborough City Council,People & Communities,Housing,Services,03/01/2020,30258169,2299.00,Revenue,Cross Keys Homes,Temporary Accommodation Costs
Peterborough City Council,People & Communities,Housing,Services,03/01/2020,30258170,5350.40,Revenue,Cross Keys Homes,Financial Assistance
Peterborough City Council,People & Communities,Independent Sector Placements,Services,03/01/2020,8000157948,3921.22,Revenue,Cross Keys Homes,Home Care
Peterborough City Council,People & Communities,Independent Sector Placements,Services,03/01/2020,8000157949,674.29,Revenue,Cross Keys Homes,Home Care
Peterborough City Council,People & Communities,Independent Sector Placements,Services,03/01/2020,8000157951,1148.03,Revenue,Cross Keys Homes,Home Care
Peterborough City Council,People & Communities,Independent Sector Placements,Services,03/01/2020,8000157952,652.80,Revenue,Cross Keys Homes,Home Care
Peterborough City Council,People & Communities,Independent Sector Placements,Services,03/01/2020,8000157954,216.02,Revenue,Cross Keys Homes,Home Care
Peterborough City Council,People & Communities,Independent Sector Placements,Services,03/01/2020,8000157954,377.52,Revenue,Cross Keys Homes,Respite Care
Peterborough City Council,People & Communities,Independent Sector Placements,Services,03/01/2020,8000157955,2745.93,Revenue,Cross Keys Homes,Home Care
Peterborough City Council,People & Communities,Independent Sector Placements,Services,03/01/2020,8000157958,2981.35,Revenue,Cross Keys Homes,Home Care
Peterborough City Council,People & Communities,Independent Sector Placements,Services,03/01/2020,8000157959,519.09,Revenue,Cross Keys Homes,Respite Care
Peterborough City Council,People & Communities,Independent Sector Placements,Services,03/01/2020,8000157960,823.20,Revenue,Cross Keys Homes,Home Care
Peterborough City Council,People & Communities,Independent Sector Placements,Services,03/01/2020,8000157962,507.03,Revenue,Cross Keys Homes,Home Care
Peterborough City Council,People & Communities,Independent Sector Placements,Services,03/01/2020,8000157963,871.70,Revenue,Cross Keys Homes,Home Care
Peterborough City Council,People & Communities,Independent Sector Placements,Services,03/01/2020,8000157964,615.83,Revenue,Cross Keys Homes,Home Care
Peterborough City Council,People & Communities,Independent Sector Placements,Services,03/01/2020,8000157965,898.98,Revenue,Cross Keys Homes,Home Care
Peterborough City Council,People & Communities,Independent Sector Placements,Services,03/01/2020,8000157969,850.47,Revenue,Cross Keys Homes,Home Care
Peterborough City Council,People & Communities,Independent Sector Placements,Services,03/01/2020,8000157973,1002.52,Revenue,Cross Keys Homes,Home Care
Peterborough City Council,People & Communities,Independent Sector Placements,Services,03/01/2020,8000157974,1372.96,Revenue,Cross Keys Homes,Home Care
Peterborough City Council,People & Communities,Independent Sector Placements,Services,03/01/2020,8000157976,555.53,Revenue,Cross Keys Homes,Home Care
Peterborough City Council,People & Communities,Independent Sector Placements,Services,03/01/2020,8000157977,942.75,Revenue,Cross Keys Homes,Home Care
Peterborough City Council,People & Communities,Independent Sector Placements,Services,03/01/2020,8000157978,738.53,Revenue,Cross Keys Homes,Home Care
Peterborough City Council,People & Communities,Housing,Services,03/01/2020,30258737,8811.13,Revenue,DA Rosalia Hotel,Temporary Accommodation Costs
Peterborough City Council,People & Communities,Access to Resources & Specialist Commissioning,Schools,03/01/2020,30257547,21406.80,Revenue,Dove Adolescent Services Ltd,Boarding Out Fees
Peterborough City Council,People & Communities,Access to Resources & Specialist Commissioning,Schools,03/01/2020,30257746,4384.33,Revenue,Dreamers Global Ltd,Boarding Out Fees
Peterborough City Council,People & Communities,Access to Resources & Specialist Commissioning,Schools,03/01/2020,30257747,4384.33,Revenue,Dreamers Global Ltd,Boarding Out Fees
Peterborough City Council,People & Communities,Access to Resources & Specialist Commissioning,Schools,03/01/2020,30257750,4384.33,Revenue,Dreamers Global Ltd,Boarding Out Fees
Peterborough City Council,People & Communities,Access to Resources & Specialist Commissioning,Schools,03/01/2020,30257751,6200.00,Revenue,Dreamers Global Ltd,Boarding Out Fees
Peterborough City Council,People & Communities,Access to Resources & Specialist Commissioning,Schools,03/01/2020,30257885,424.29,Revenue,Dreamers Global Ltd,Boarding Out Fees
Peterborough City Council,People & Communities,Access to Resources & Specialist Commissioning,Schools,03/01/2020,30257885,3960.04,Revenue,Dreamers Global Ltd,Boarding Out Fees
Peterborough City Council,People & Communities,Housing,Services,03/01/2020,30258199,8519.55,Revenue,Eastfield Guesthouse,Temporary Accommodation Costs
Peterborough City Council,People & Communities,Housing,Services,03/01/2020,30258201,12627.60,Revenue,Eastfield Guesthouse,Temporary Accommodation Costs
Peterborough City Council,People & Communities,Housing,Services,03/01/2020,30258203,8278.83,Revenue,Eastfield Guesthouse,Temporary Accommodation Costs
Peterborough City Council,People & Communities,Housing,Services,03/01/2020,30258206,13145.76,Revenue,Eastfield Guesthouse,Temporary Accommodation Costs
Peterborough City Council,People & Communities,Housing,Services,03/01/2020,30258209,9356.97,Revenue,Eastfield Guesthouse,Temporary Accommodation Costs
Peterborough City Council,People & Communities,Housing,Services,03/01/2020,30258210,12471.54,Revenue,Eastfield Guesthouse,Temporary Accommodation Costs
Peterborough City Council,People & Communities,Cultural Services,Energy Costs,03/01/2020,30257855,4389.90,Revenue,EDF Energy Networks Ltd,Electricity
Peterborough City Council,Corporate,Corporate,Non Revenue,03/01/2020,30258755,1542.84,Capital,Elliott Group Limited,Building And Site Works
Peterborough City Council,People & Communities,Independent Sector Placements,Services,03/01/2020,30257395,4800.00,Revenue,FIELD HOUSE (EYE) LTD,Respite Care
Peterborough City Council,People & Communities,Access to Resources & Specialist Commissioning,Schools,03/01/2020,30258321,2750.00,Revenue,Florinee Homes Ltd,Boarding Out Fees
Peterborough City Council,People & Communities,Access to Resources & Specialist Commissioning,Schools,03/01/2020,30258322,2750.00,Revenue,Florinee Homes Ltd,Boarding Out Fees
Peterborough City Council,People & Communities,Access to Resources & Specialist Commissioning,Schools,03/01/2020,30258326,1980.00,Revenue,Florinee Homes Ltd,Boarding Out Fees
Peterborough City Council,People & Communities,External Education Placements,Services,03/01/2020,30258625,1603.50,Revenue,Fourfields Community Primary School,Out Of Area Education Costs
Peterborough City Council,People & Communities,Access to Resources & Specialist Commissioning,Schools,03/01/2020,30257699,4526.93,Revenue,Futures For Children,Boarding Out Fees
Peterborough City Council,People & Communities,Access to Resources & Specialist Commissioning,Schools,03/01/2020,30257700,3538.65,Revenue,Futures For Children,Boarding Out Fees
Peterborough City Council,People & Communities,Home Services Delivery Model,Customer and client receipts - Fees & Charges,03/01/2020,30257843,-490.93,Revenue,Garfield Builders Ltd,Grant Payment
Peterborough City Council,Corporate,Corporate,Non Revenue,03/01/2020,30257843,26354.82,Capital,Garfield Builders Ltd,Grant Payment
Peterborough City Council,Corporate,Corporate,Non Revenue,03/01/2020,30257843,-19799.05,Capital,Garfield Builders Ltd,Grant Payment
Peterborough City Council,Corporate,Corporate,Non Revenue,03/01/2020,30257843,-2631.98,Capital,Garfield Builders Ltd,Grant Payment
Peterborough City Council,People & Communities,HTS & CSC Transport,Contract Hire and Operating Leases,03/01/2020,8000158153,2280.00,Revenue,Goldstar Cabs Ltd,Hired Transport
Peterborough City Council,Resources,Other,"Other Grants, reimbursements and contributions",03/01/2020,30257335,27894.78,Revenue,Hampton Parish Council,Grant Payment
Peterborough City Council,People & Communities,Independent Sector Placements,Services,03/01/2020,30258318,1067.62,Revenue,HC-One Oval Limited,Residential Care
Peterborough City Council,Chief Executives,HR,Services,03/01/2020,30258324,671.80,Revenue,Heales Health Services Ltd,Consultants Fees
Peterborough City Council,People & Communities,Access to Resources & Specialist Commissioning,Schools,03/01/2020,30257815,15407.00,Revenue,Horizon Care & Education Group,Boarding Out Fees
Peterborough City Council,People & Communities,Access to Resources & Specialist Commissioning,Schools,03/01/2020,30257732,5748.33,Revenue,I S P,Boarding Out Fees
Peterborough City Council,People & Communities,Access to Resources & Specialist Commissioning,Schools,03/01/2020,30257736,5748.33,Revenue,I S P,Boarding Out Fees
Peterborough City Council,People & Communities,Access to Resources & Specialist Commissioning,Schools,03/01/2020,30257737,5748.33,Revenue,I S P,Boarding Out Fees
Peterborough City Council,Resources,Peterborough Serco Strategic Partnership,Services,03/01/2020,30257880,-1750.00,Revenue,Inform CPI Ltd,Consultants Fees
Peterborough City Council,Resources,Peterborough Serco Strategic Partnership,Services,03/01/2020,30257881,5000.00,Revenue,Inform CPI Ltd,Consultants Fees
Peterborough City Council,Resources,Peterborough Serco Strategic Partnership,Services,03/01/2020,30257882,4850.00,Revenue,Inform CPI Ltd,Consultants Fees
Peterborough City Council,Resources,Peterborough Serco Strategic Partnership,Services,03/01/2020,30258298,4400.00,Revenue,Inform CPI Ltd,Consultants Fees
Peterborough City Council,Corporate,Corporate,Non Revenue,03/01/2020,30258772,321997.78,Capital,Interserve Construction Limited,Building And Site Works
Peterborough City Council,Place & Economy,Waste Management,Services,03/01/2020,30257492,8345.82,Revenue,Invixon Limited,Recycling
Peterborough City Council,People & Communities,Independent Sector Placements,Services,03/01/2020,30257167,910.94,Revenue,LAVENDER HOUSE RESIDENTIAL HOME,Respite Care
Peterborough City Council,People & Communities,Director,Services,03/01/2020,30258701,1013.34,Revenue,Lincolnshire Wolds Community Trust,Education Expenses
Peterborough City Council,People & Communities,Special Educational Needs / Inclusion,Agency Staff,03/01/2020,30258406,26250.00,Revenue,Lind Associates,External Temporary Staff
Peterborough City Council,People & Communities,Children's Social Care,Agency Staff,03/01/2020,30257852,4551.00,Revenue,Liquid Personnel,External Temporary Staff
Peterborough City Council,People & Communities,Access to Resources & Specialist Commissioning,Schools,03/01/2020,30258240,707.14,Revenue,Locate Accommodation Ltd,Boarding Out Fees
Peterborough City Council,People & Communities,Access to Resources & Specialist Commissioning,Schools,03/01/2020,30258245,600.00,Revenue,Locate Accommodation Ltd,Boarding Out Fees
Peterborough City Council,People & Communities,Access to Resources & Specialist Commissioning,Schools,03/01/2020,30258249,707.14,Revenue,Locate Accommodation Ltd,Boarding Out Fees
Peterborough City Council,People & Communities,Access to Resources & Specialist Commissioning,Schools,03/01/2020,30258251,557.14,Revenue,Locate Accommodation Ltd,Boarding Out Fees
Peterborough City Council,People & Communities,Access to Resources & Specialist Commissioning,Schools,03/01/2020,30258472,557.14,Revenue,Locate Accommodation Ltd,Boarding Out Fees
Peterborough City Council,People & Communities,Independent Sector Placements,Services,03/01/2020,8000157837,755.82,Revenue,Longhurst Group Limited,Home Care
Peterborough City Council,People & Communities,Independent Sector Placements,Services,03/01/2020,8000157840,783.36,Revenue,Longhurst Group Limited,Home Care
Peterborough City Council,People & Communities,Independent Sector Placements,Services,03/01/2020,8000157842,526.32,Revenue,Longhurst Group Limited,Home Care
Peterborough City Council,People & Communities,Independent Sector Placements,Services,03/01/2020,8000157844,783.36,Revenue,Longhurst Group Limited,Home Care
Peterborough City Council,People & Communities,Independent Sector Placements,Services,03/01/2020,8000157845,1676.88,Revenue,Longhurst Group Limited,Home Care
Peterborough City Council,People & Communities,Independent Sector Placements,Services,03/01/2020,8000157846,612.00,Revenue,Longhurst Group Limited,Home Care
Peterborough City Council,People & Communities,Independent Sector Placements,Services,03/01/2020,8000157848,599.76,Revenue,Longhurst Group Limited,Home Care
Peterborough City Council,People & Communities,Independent Sector Placements,Services,03/01/2020,8000157852,685.44,Revenue,Longhurst Group Limited,Home Care
Peterborough City Council,People & Communities,Independent Sector Placements,Services,03/01/2020,8000157855,599.76,Revenue,Longhurst Group Limited,Home Care
Peterborough City Council,People & Communities,Independent Sector Placements,Services,03/01/2020,8000157856,551.25,Revenue,Longhurst Group Limited,Assistive Technology
Peterborough City Council,People & Communities,Independent Sector Placements,Services,03/01/2020,8000157857,599.76,Revenue,Longhurst Group Limited,Home Care
Peterborough City Council,People & Communities,Independent Sector Placements,Services,03/01/2020,8000157858,820.08,Revenue,Longhurst Group Limited,Home Care
Peterborough City Council,People & Communities,Independent Sector Placements,Services,03/01/2020,8000157859,599.76,Revenue,Longhurst Group Limited,Home Care
Peterborough City Council,People & Communities,Independent Sector Placements,Services,03/01/2020,8000157860,514.08,Revenue,Longhurst Group Limited,Home Care
Peterborough City Council,People & Communities,Independent Sector Placements,Services,03/01/2020,8000157861,771.12,Revenue,Longhurst Group Limited,Home Care
Peterborough City Council,People & Communities,Independent Sector Placements,Services,03/01/2020,8000157865,1285.20,Revenue,Longhurst Group Limited,Home Care
Peterborough City Council,People & Communities,Independent Sector Placements,Services,03/01/2020,8000157867,1884.96,Revenue,Longhurst Group Limited,Home Care
Peterborough City Council,People & Communities,Independent Sector Placements,Services,03/01/2020,8000157869,599.76,Revenue,Longhurst Group Limited,Home Care
Peterborough City Council,People & Communities,Independent Sector Placements,Services,03/01/2020,8000157870,599.76,Revenue,Longhurst Group Limited,Home Care
Peterborough City Council,People & Communities,Independent Sector Placements,Services,03/01/2020,8000157871,685.44,Revenue,Longhurst Group Limited,Home Care
Peterborough City Council,People & Communities,Independent Sector Placements,Services,03/01/2020,8000157875,795.60,Revenue,Longhurst Group Limited,Home Care
Peterborough City Council,People & Communities,Independent Sector Placements,Services,03/01/2020,8000157876,2056.32,Revenue,Longhurst Group Limited,Home Care
Peterborough City Council,People & Communities,Independent Sector Placements,Services,03/01/2020,8000157877,1884.96,Revenue,Longhurst Group Limited,Home Care
Peterborough City Council,People & Communities,Independent Sector Placements,Services,03/01/2020,8000157879,514.08,Revenue,Longhurst Group Limited,Home Care
Peterborough City Council,People & Communities,Independent Sector Placements,Services,03/01/2020,8000157880,954.72,Revenue,Longhurst Group Limited,Home Care
Peterborough City Council,People & Communities,Independent Sector Placements,Services,03/01/2020,8000157881,514.08,Revenue,Longhurst Group Limited,Home Care
Peterborough City Council,People & Communities,Independent Sector Placements,Services,03/01/2020,8000157885,703.80,Revenue,Longhurst Group Limited,Home Care
Peterborough City Council,People & Communities,Independent Sector Placements,Services,03/01/2020,8000157886,599.76,Revenue,Longhurst Group Limited,Home Care
Peterborough City Council,People & Communities,Independent Sector Placements,Services,03/01/2020,8000157887,630.36,Revenue,Longhurst Group Limited,Home Care
Peterborough City Council,People & Communities,Independent Sector Placements,Services,03/01/2020,8000157900,587.52,Revenue,Longhurst Group Limited,Home Care
Peterborough City Council,People & Communities,Independent Sector Placements,Services,03/01/2020,8000157905,1064.88,Revenue,Longhurst Group Limited,Home Care
Peterborough City Council,People & Communities,Independent Sector Placements,Services,03/01/2020,8000157908,1643.22,Revenue,Longhurst Group Limited,Home Care
Peterborough City Council,People & Communities,Independent Sector Placements,Services,03/01/2020,8000157909,514.08,Revenue,Longhurst Group Limited,Home Care
Peterborough City Council,People & Communities,Independent Sector Placements,Services,03/01/2020,8000157910,685.44,Revenue,Longhurst Group Limited,Home Care
Peterborough City Council,People & Communities,Independent Sector Placements,Services,03/01/2020,8000157911,2399.04,Revenue,Longhurst Group Limited,Home Care
Peterborough City Council,People & Communities,Independent Sector Placements,Services,03/01/2020,8000157913,526.32,Revenue,Longhurst Group Limited,Home Care
Peterborough City Council,People & Communities,Independent Sector Placements,Services,03/01/2020,8000157914,599.76,Revenue,Longhurst Group Limited,Home Care
Peterborough City Council,People & Communities,Independent Sector Placements,Services,03/01/2020,8000157915,979.20,Revenue,Longhurst Group Limited,Home Care
Peterborough City Council,People & Communities,Independent Sector Placements,Services,03/01/2020,8000157916,918.00,Revenue,Longhurst Group Limited,Home Care
Peterborough City Council,People & Communities,Independent Sector Placements,Services,03/01/2020,8000157917,673.20,Revenue,Longhurst Group Limited,Home Care
Peterborough City Council,People & Communities,Independent Sector Placements,Services,03/01/2020,8000157921,685.44,Revenue,Longhurst Group Limited,Home Care
Peterborough City Council,People & Communities,Independent Sector Placements,Services,03/01/2020,8000157922,685.44,Revenue,Longhurst Group Limited,Home Care
Peterborough City Council,People & Communities,Independent Sector Placements,Services,03/01/2020,8000157923,685.44,Revenue,Longhurst Group Limited,Home Care
Peterborough City Council,People & Communities,Independent Sector Placements,Services,03/01/2020,8000157927,1199.52,Revenue,Longhurst Group Limited,Home Care
Peterborough City Council,People & Communities,Independent Sector Placements,Services,03/01/2020,8000157928,514.08,Revenue,Longhurst Group Limited,Home Care
Peterborough City Council,People & Communities,Independent Sector Placements,Services,03/01/2020,8000157929,771.12,Revenue,Longhurst Group Limited,Home Care
Peterborough City Council,People & Communities,Independent Sector Placements,Services,03/01/2020,8000157936,581.40,Revenue,Longhurst Group Limited,Home Care
Peterborough City Council,People & Communities,Independent Sector Placements,Services,03/01/2020,8000157937,1126.08,Revenue,Longhurst Group Limited,Home Care
Peterborough City Council,People & Communities,Independent Sector Placements,Services,03/01/2020,8000157939,587.52,Revenue,Longhurst Group Limited,Home Care
Peterborough City Council,People & Communities,Block Contracts,Other Establishments,03/01/2020,30257792,3479.44,Revenue,Longueville Court (Barchester),Third Party Payments - Contract
Peterborough City Council,People & Communities,Independent Sector Placements,Services,03/01/2020,30257936,2879.84,Revenue,Longueville Court (Barchester),Residential Care
Peterborough City Council,People & Communities,Independent Sector Placements,Services,03/01/2020,30257938,4000.00,Revenue,Longueville Court (Barchester),Residential Care
Peterborough City Council,People & Communities,Independent Sector Placements,Services,03/01/2020,30257939,2021.16,Revenue,Longueville Court (Barchester),Residential Care
Peterborough City Council,People & Communities,Independent Sector Placements,Services,03/01/2020,30257941,3567.36,Revenue,Longueville Court (Barchester),Residential Care
Peterborough City Council,People & Communities,Independent Sector Placements,Services,03/01/2020,30257943,3154.12,Revenue,Longueville Court (Barchester),Residential Care
Peterborough City Council,People & Communities,Independent Sector Placements,Services,03/01/2020,30257944,2531.16,Revenue,Longueville Court (Barchester),Residential Care
Peterborough City Council,People & Communities,Independent Sector Placements,Services,03/01/2020,30257948,4300.88,Revenue,Longueville Court (Barchester),Residential Care
Peterborough City Council,People & Communities,Independent Sector Placements,Services,03/01/2020,30257950,4000.00,Revenue,Longueville Court (Barchester),Residential Care
Peterborough City Council,People & Communities,Independent Sector Placements,Services,03/01/2020,30257952,3165.60,Revenue,Longueville Court (Barchester),Residential Care
Peterborough City Council,People & Communities,Access to Resources & Specialist Commissioning,Schools,03/01/2020,30258764,1410.81,Revenue,Luton Community Housing Ltd,Boarding Out Fees
Peterborough City Council,Corporate,Corporate,Non Revenue,03/01/2020,30258087,1200.00,Capital,M J Greaves,Building And Site Works
Peterborough City Council,Corporate,Corporate,Non Revenue,03/01/2020,30258090,3000.00,Capital,M J Greaves,Building And Site Works
Peterborough City Council,Corporate,Corporate,Non Revenue,03/01/2020,30258092,800.00,Capital,M J Greaves,Building And Site Works
Peterborough City Council,Corporate,Corporate,Non Revenue,03/01/2020,30258100,780.00,Capital,M J Greaves,Building And Site Works
Peterborough City Council,Corporate,Corporate,Non Revenue,03/01/2020,30258101,2300.00,Capital,M J Greaves,Building And Site Works
Peterborough City Council,People & Communities,Home Services Delivery Model,Customer and client receipts - Fees & Charges,03/01/2020,30258124,-427.62,Revenue,Maplethorpe & Mooney Ltd,Home Care
Peterborough City Council,Corporate,Corporate,Non Revenue,03/01/2020,30258124,3420.99,Capital,Maplethorpe & Mooney Ltd,Grant Payment
Peterborough City Council,People & Communities,Independent Sector Placements,Services,03/01/2020,30257771,3764.29,Revenue,Martlane Limited T/A  Forest Place Nursing Home,Residential Care
Peterborough City Council,People & Communities,Independent Sector Placements,Services,03/01/2020,30246343,517.50,Revenue,MEARS GROUP,Home Care
Peterborough City Council,People & Communities,Independent Sector Placements,Services,03/01/2020,30246355,565.34,Revenue,MEARS GROUP,Home Care
Peterborough City Council,People & Communities,Independent Sector Placements,Services,03/01/2020,30258044,704.72,Revenue,MEARS GROUP,Home Care
Peterborough City Council,People & Communities,Independent Sector Placements,Services,03/01/2020,30258045,764.38,Revenue,MEARS GROUP,Home Care
Peterborough City Council,People & Communities,Independent Sector Placements,Services,03/01/2020,30258048,1611.53,Revenue,MEARS GROUP,Home Care
Peterborough City Council,People & Communities,Independent Sector Placements,Services,03/01/2020,30258050,603.58,Revenue,MEARS GROUP,Home Care
Peterborough City Council,People & Communities,Independent Sector Placements,Services,03/01/2020,30258052,2438.61,Revenue,MEARS GROUP,Home Care
Peterborough City Council,People & Communities,Independent Sector Placements,Services,03/01/2020,30258057,1624.98,Revenue,MEARS GROUP,Home Care
Peterborough City Council,People & Communities,Independent Sector Placements,Services,03/01/2020,30258267,690.03,Revenue,MEARS GROUP,Home Care
Peterborough City Council,People & Communities,Independent Sector Placements,Services,03/01/2020,8000156889,635.25,Revenue,MEARS GROUP,Home Care
Peterborough City Council,People & Communities,Independent Sector Placements,Services,03/01/2020,8000156890,536.08,Revenue,MEARS GROUP,Home Care
Peterborough City Council,People & Communities,Access to Resources & Specialist Commissioning,Schools,03/01/2020,30257729,509.33,Revenue,Mirrin Homes Limited,Boarding Out Fees
Peterborough City Council,Customer & Digital Services,ICT,Members Allowances,03/01/2020,30257913,1049.75,Revenue,MLL Telecom Limited,ICT Services
Peterborough City Council,Resources,Commercial Propety,Repair & Maintenance of Buildings,03/01/2020,30258628,1960.00,Revenue,MORLEY BUILDING SERVICES LTD,Maintanence
Peterborough City Council,People & Communities,Access to Resources & Specialist Commissioning,Schools,03/01/2020,30257455,3816.10,Revenue,Nexus Fostering Ltd,Boarding Out Fees
Peterborough City Council,Resources,Commercial Propety,Repair & Maintenance of Buildings,03/01/2020,30258451,650.00,Revenue,Opportunity Peterborough,Other Occupancy Costs
Peterborough City Council,People & Communities,Access to Resources & Specialist Commissioning,Schools,03/01/2020,30257722,3751.62,Revenue,Orange Grove Fostercare Ltd,Boarding Out Fees
Peterborough City Council,Place & Economy,Westcombe Engineering,Services,03/01/2020,30258736,685.00,Revenue,Paul Clarke CNC Machine Tool Services,Materials
Peterborough City Council,People & Communities,Access to Resources & Specialist Commissioning,Schools,03/01/2020,30254449,949.28,Revenue,PCH Integration Services Ltd,Boarding Out Fees
Peterborough City Council,People & Communities,Access to Resources & Specialist Commissioning,Schools,03/01/2020,30254450,866.57,Revenue,PCH Integration Services Ltd,Boarding Out Fees
Peterborough City Council,People & Communities,Access to Resources & Specialist Commissioning,Schools,03/01/2020,30254618,2186.14,Revenue,PCH Integration Services Ltd,Boarding Out Fees
Peterborough City Council,People & Communities,Access to Resources & Specialist Commissioning,Schools,03/01/2020,30254619,2186.14,Revenue,PCH Integration Services Ltd,Boarding Out Fees
Peterborough City Council,People & Communities,Access to Resources & Specialist Commissioning,Schools,03/01/2020,30254620,2186.14,Revenue,PCH Integration Services Ltd,Boarding Out Fees
Peterborough City Council,People & Communities,Access to Resources & Specialist Commissioning,Schools,03/01/2020,30254621,2186.14,Revenue,PCH Integration Services Ltd,Boarding Out Fees
Peterborough City Council,People & Communities,Access to Resources & Specialist Commissioning,Schools,03/01/2020,30254622,1498.28,Revenue,PCH Integration Services Ltd,Boarding Out Fees
Peterborough City Council,People & Communities,Access to Resources & Specialist Commissioning,Schools,03/01/2020,30254624,2186.14,Revenue,PCH Integration Services Ltd,Boarding Out Fees
Peterborough City Council,People & Communities,Access to Resources & Specialist Commissioning,Schools,03/01/2020,30254625,1498.28,Revenue,PCH Integration Services Ltd,Boarding Out Fees
Peterborough City Council,People & Communities,Access to Resources & Specialist Commissioning,Schools,03/01/2020,30254627,2186.14,Revenue,PCH Integration Services Ltd,Boarding Out Fees
Peterborough City Council,People & Communities,Access to Resources & Specialist Commissioning,Schools,03/01/2020,30254628,2186.14,Revenue,PCH Integration Services Ltd,Boarding Out Fees
Peterborough City Council,People & Communities,Access to Resources & Specialist Commissioning,Schools,03/01/2020,30254633,2186.14,Revenue,PCH Integration Services Ltd,Boarding Out Fees
Peterborough City Council,People & Communities,Access to Resources & Specialist Commissioning,Schools,03/01/2020,30254634,2186.14,Revenue,PCH Integration Services Ltd,Boarding Out Fees
Peterborough City Council,People & Communities,Access to Resources & Specialist Commissioning,Schools,03/01/2020,30254831,2186.14,Revenue,PCH Integration Services Ltd,Boarding Out Fees
Peterborough City Council,People & Communities,Access to Resources & Specialist Commissioning,Schools,03/01/2020,30254832,2186.14,Revenue,PCH Integration Services Ltd,Boarding Out Fees
Peterborough City Council,People & Communities,Access to Resources & Specialist Commissioning,Schools,03/01/2020,30254833,2186.14,Revenue,PCH Integration Services Ltd,Boarding Out Fees
Peterborough City Council,People & Communities,HTS & CSC Transport,Contract Hire and Operating Leases,03/01/2020,8000158152,2188.00,Revenue,Peterborough Cars,Hired Transport
Peterborough City Council,People & Communities,Access to Resources & Specialist Commissioning,Schools,03/01/2020,30257485,3107.14,Revenue,Pride Fostering,Boarding Out Fees
Peterborough City Council,Corporate,Corporate,Non Revenue,03/01/2020,30257825,24330.55,Capital,R G Carter Cambridge Ltd,Building And Site Works
Peterborough City Council,Corporate,Corporate,Non Revenue,03/01/2020,30258618,38049.56,Capital,R G Carter Cambridge Ltd,Building And Site Works
Peterborough City Council,People & Communities,HTS & CSC Transport,Contract Hire and Operating Leases,03/01/2020,8000158149,483.01,Revenue,R T Enterprises Ltd T/A Royal Taxis,Hired Transport
Peterborough City Council,People & Communities,HTS & CSC Transport,Contract Hire and Operating Leases,03/01/2020,8000158149,1448.99,Revenue,R T Enterprises Ltd T/A Royal Taxis,Hired Transport
Peterborough City Council,People & Communities,Clare Lodge,Agency Staff,03/01/2020,30258004,588.83,Revenue,Randstad Care Ltd,External Temporary Staff
Peterborough City Council,Place & Economy,Transport & Infrastructure Commissioning,Services,03/01/2020,30255740,185292.60,Revenue,Stagecoach in Peterborough,Contractors
Peterborough City Council,People & Communities,Children's Social Care,Contract Hire and Operating Leases,03/01/2020,30256682,900.00,Revenue,Stagecoach in Peterborough,Hired Transport
Peterborough City Council,Place & Economy,Transport & Infrastructure Commissioning,Services,03/01/2020,30256686,1937.89,Revenue,Stagecoach in Peterborough,Contractors
Peterborough City Council,Place & Economy,Transport & Infrastructure Commissioning,Services,03/01/2020,30256725,1937.89,Revenue,Stagecoach in Peterborough,Contractors
Peterborough City Council,Place & Economy,Transport & Infrastructure Commissioning,Services,03/01/2020,30256727,1937.89,Revenue,Stagecoach in Peterborough,Contractors
Peterborough City Council,Place & Economy,Transport & Infrastructure Commissioning,Services,03/01/2020,30256728,527.73,Revenue,Stagecoach in Peterborough,Contractors
Peterborough City Council,Place & Economy,Transport & Infrastructure Commissioning,Services,03/01/2020,30256729,1937.89,Revenue,Stagecoach in Peterborough,Contractors
Peterborough City Council,Place & Economy,Transport & Infrastructure Commissioning,Services,03/01/2020,30257804,16625.27,Revenue,Delaine Buses Ltd,Contractors
Peterborough City Council,Place & Economy,Transport & Infrastructure Commissioning,Services,03/01/2020,30258667,18212.74,Revenue,Stagecoach in Peterborough,Contractors
Peterborough City Council,Corporate,Corporate,Non Revenue,03/01/2020,30257486,1102.50,Capital,Redacted Personal Information,Building And Site Works
Peterborough City Council,Resources,Commercial Propety,Services,03/01/2020,30257765,990.00,Revenue,PARCA,Surveys
Peterborough City Council,People & Communities,Cultural Services,Services,03/01/2020,30258278,1072.00,Revenue,Redacted Personal Information,Hired Services
Peterborough City Council,People & Communities,Independent Sector Placements,Services,03/01/2020,30258361,2162.24,Revenue,Redacted Personal Information,Residential Care
Peterborough City Council,People & Communities,Independent Sector Placements,Services,03/01/2020,30258362,2794.32,Revenue,Redacted Personal Information,Residential Care
Peterborough City Council,People & Communities,Independent Sector Placements,Services,03/01/2020,30258376,4391.48,Revenue,Redacted Personal Information,Residential Care
Peterborough City Council,People & Communities,Independent Sector Placements,Services,03/01/2020,30258378,3812.84,Revenue,Redacted Personal Information,Residential Care
Peterborough City Council,People & Communities,Independent Sector Placements,Services,03/01/2020,30258379,685.28,Revenue,Redacted Personal Information,Residential Care
Peterborough City Council,People & Communities,Independent Sector Placements,Services,03/01/2020,30258380,756.00,Revenue,Redacted Personal Information,Residential Care
Peterborough City Council,People & Communities,Independent Sector Placements,Services,03/01/2020,30258381,4288.00,Revenue,Redacted Personal Information,Residential Care
Peterborough City Council,People & Communities,Independent Sector Placements,Services,03/01/2020,30258382,3625.08,Revenue,Redacted Personal Information,Residential Care
Peterborough City Council,People & Communities,Independent Sector Placements,Services,03/01/2020,30258386,2162.24,Revenue,Redacted Personal Information,Residential Care
Peterborough City Council,People & Communities,Independent Sector Placements,Services,03/01/2020,30258387,1954.32,Revenue,Redacted Personal Information,Residential Care
Peterborough City Council,People & Communities,Independent Sector Placements,Services,03/01/2020,30258388,1954.32,Revenue,Redacted Personal Information,Residential Care
Peterborough City Council,People & Communities,Independent Sector Placements,Services,03/01/2020,30258389,2345.20,Revenue,Redacted Personal Information,Residential Care
Peterborough City Council,People & Communities,Independent Sector Placements,Services,03/01/2020,30258390,2337.52,Revenue,Redacted Personal Information,Residential Care
Peterborough City Council,People & Communities,Independent Sector Placements,Services,03/01/2020,30258391,3200.00,Revenue,Redacted Personal Information,Residential Care
Peterborough City Council,People & Communities,Independent Sector Placements,Services,03/01/2020,30258392,3103.92,Revenue,Redacted Personal Information,Residential Care
Peterborough City Council,People & Communities,Independent Sector Placements,Services,03/01/2020,30258393,2162.28,Revenue,Redacted Personal Information,Residential Care
Peterborough City Council,People & Communities,Independent Sector Placements,Services,03/01/2020,30258394,3065.60,Revenue,Redacted Personal Information,Residential Care
Peterborough City Council,People & Communities,Independent Sector Placements,Services,03/01/2020,30258395,660.00,Revenue,Redacted Personal Information,Residential Care
Peterborough City Council,People & Communities,Independent Sector Placements,Services,03/01/2020,30258396,5234.63,Revenue,Redacted Personal Information,Residential Care
Peterborough City Council,People & Communities,Independent Sector Placements,Services,03/01/2020,30258397,4904.00,Revenue,Redacted Personal Information,Residential Care
Peterborough City Council,Governance,Legal Services,Agency Staff,03/01/2020,30258458,1100.00,Revenue,Redacted Personal Information,External Temporary Staff
Peterborough City Council,People & Communities,Independent Sector Placements,Social Services,03/01/2020,8000158041,2051.34,Revenue,Redacted Personal Information,Direct Payments
Peterborough City Council,People & Communities,Clare Lodge,Agency Staff,03/01/2020,30253091,960.73,Revenue,Reed Specialist Recruitment Limited,External Temporary Staff
Peterborough City Council,People & Communities,Clare Lodge,Agency Staff,03/01/2020,30253104,596.06,Revenue,Reed Specialist Recruitment Limited,External Temporary Staff
Peterborough City Council,People & Communities,Clare Lodge,Agency Staff,03/01/2020,30255596,1104.09,Revenue,Reed Specialist Recruitment Limited,External Temporary Staff
Peterborough City Council,People & Communities,Clare Lodge,Agency Staff,03/01/2020,30255597,933.07,Revenue,Reed Specialist Recruitment Limited,External Temporary Staff
Peterborough City Council,People & Communities,Clare Lodge,Agency Staff,03/01/2020,30255601,614.90,Revenue,Reed Specialist Recruitment Limited,External Temporary Staff
Peterborough City Council,People & Communities,Clare Lodge,Agency Staff,03/01/2020,30255926,591.25,Revenue,Reed Specialist Recruitment Limited,External Temporary Staff
Peterborough City Council,People & Communities,Clare Lodge,Agency Staff,03/01/2020,30255943,621.14,Revenue,Reed Specialist Recruitment Limited,External Temporary Staff
Peterborough City Council,People & Communities,Clare Lodge,Agency Staff,03/01/2020,30257003,614.90,Revenue,Reed Specialist Recruitment Limited,External Temporary Staff
Peterborough City Council,People & Communities,Clare Lodge,Agency Staff,03/01/2020,30257125,600.71,Revenue,Reed Specialist Recruitment Limited,External Temporary Staff
Peterborough City Council,Customer & Digital Services,ICT,Agency Staff,03/01/2020,30257128,659.56,Revenue,Reed Specialist Recruitment Limited,External Temporary Staff
Peterborough City Council,Place & Economy,Building Control,Agency Staff,03/01/2020,30257521,1075.05,Revenue,Reed Specialist Recruitment Limited,External Temporary Staff
Peterborough City Council,Place & Economy,Development Management,Agency Staff,03/01/2020,30257526,2459.20,Revenue,Reed Specialist Recruitment Limited,External Temporary Staff
Peterborough City Council,People & Communities,Clare Lodge,Agency Staff,03/01/2020,30257537,663.96,Revenue,Reed Specialist Recruitment Limited,External Temporary Staff
Peterborough City Council,People & Communities,Clare Lodge,Agency Staff,03/01/2020,30257888,950.73,Revenue,Reed Specialist Recruitment Limited,External Temporary Staff
Peterborough City Council,People & Communities,Clare Lodge,Agency Staff,03/01/2020,30257889,652.74,Revenue,Reed Specialist Recruitment Limited,External Temporary Staff
Peterborough City Council,Corporate,Corporate,Non Revenue,03/01/2020,30257894,2268.60,Capital,Reed Specialist Recruitment Limited,Consultants Fees
Peterborough City Council,People & Communities,Clare Lodge,Agency Staff,03/01/2020,30257895,558.14,Revenue,Reed Specialist Recruitment Limited,External Temporary Staff
Peterborough City Council,People & Communities,Clare Lodge,Agency Staff,03/01/2020,30257896,652.74,Revenue,Reed Specialist Recruitment Limited,External Temporary Staff
Peterborough City Council,People & Communities,Clare Lodge,Agency Staff,03/01/2020,30257897,648.01,Revenue,Reed Specialist Recruitment Limited,External Temporary Staff
Peterborough City Council,Place & Economy,Building Control,Agency Staff,03/01/2020,30257898,1075.05,Revenue,Reed Specialist Recruitment Limited,External Temporary Staff
Peterborough City Council,Business Improvement,Programme Management Office,Agency Staff,03/01/2020,30257900,1788.86,Revenue,Reed Specialist Recruitment Limited,External Temporary Staff
Peterborough City Council,Customer & Digital Services,ICT,Agency Staff,03/01/2020,30257901,757.06,Revenue,Reed Specialist Recruitment Limited,External Temporary Staff
Peterborough City Council,Place & Economy,Highway & Drainage Control,Agency Staff,03/01/2020,30257903,985.31,Revenue,Reed Specialist Recruitment Limited,External Temporary Staff
Peterborough City Council,People & Communities,Commissioning Team,Agency Staff,03/01/2020,30257904,2243.60,Revenue,Reed Specialist Recruitment Limited,External Temporary Staff
Peterborough City Council,People & Communities,Clare Lodge,Agency Staff,03/01/2020,30257905,633.82,Revenue,Reed Specialist Recruitment Limited,External Temporary Staff
Peterborough City Council,People & Communities,Strategic Commissioning - Management,Agency Staff,03/01/2020,30257906,580.50,Revenue,Reed Specialist Recruitment Limited,External Temporary Staff
Peterborough City Council,Governance,Legal Services,Agency Staff,03/01/2020,30257909,2025.38,Revenue,Reed Specialist Recruitment Limited,External Temporary Staff
Peterborough City Council,Place & Economy,Development Management,Agency Staff,03/01/2020,30257910,1475.52,Revenue,Reed Specialist Recruitment Limited,External Temporary Staff
Peterborough City Council,Governance,Legal Services,Agency Staff,03/01/2020,30257911,1751.43,Revenue,Reed Specialist Recruitment Limited,External Temporary Staff
Peterborough City Council,Governance,Legal Services,Agency Staff,03/01/2020,30257912,1459.50,Revenue,Reed Specialist Recruitment Limited,External Temporary Staff
Peterborough City Council,People & Communities,Clare Lodge,Agency Staff,03/01/2020,30257914,657.47,Revenue,Reed Specialist Recruitment Limited,External Temporary Staff
Peterborough City Council,Governance,Legal Services,Agency Staff,03/01/2020,30257915,844.80,Revenue,Reed Specialist Recruitment Limited,External Temporary Staff
Peterborough City Council,People & Communities,Early Help ASC/CSC,Agency Staff,03/01/2020,30257916,550.90,Revenue,Reed Specialist Recruitment Limited,External Temporary Staff
Peterborough City Council,People & Communities,Clare Lodge,Agency Staff,03/01/2020,30257918,652.74,Revenue,Reed Specialist Recruitment Limited,External Temporary Staff
Peterborough City Council,People & Communities,Clare Lodge,Agency Staff,03/01/2020,30257919,613.66,Revenue,Reed Specialist Recruitment Limited,External Temporary Staff
Peterborough City Council,Place & Economy,Highway & Drainage Control,Agency Staff,03/01/2020,30257920,589.72,Revenue,Reed Specialist Recruitment Limited,External Temporary Staff
Peterborough City Council,People & Communities,Early Help ASC/CSC,Agency Staff,03/01/2020,30257921,569.83,Revenue,Reed Specialist Recruitment Limited,External Temporary Staff
Peterborough City Council,People & Communities,Clare Lodge,Agency Staff,03/01/2020,30258012,761.53,Revenue,Reed Specialist Recruitment Limited,External Temporary Staff
Peterborough City Council,People & Communities,Clare Lodge,Agency Staff,03/01/2020,30258465,1006.00,Revenue,Reed Specialist Recruitment Limited,External Temporary Staff
Peterborough City Council,Place & Economy,Highway & Drainage Control,Agency Staff,03/01/2020,30258468,1235.80,Revenue,Reed Specialist Recruitment Limited,External Temporary Staff
Peterborough City Council,Place & Economy,Highway & Drainage Control,Agency Staff,03/01/2020,30258490,1160.66,Revenue,Reed Specialist Recruitment Limited,External Temporary Staff
Peterborough City Council,Place & Economy,Highway & Drainage Control,Agency Staff,03/01/2020,30258497,548.33,Revenue,Reed Specialist Recruitment Limited,External Temporary Staff
Peterborough City Council,Governance,Legal Services,Agency Staff,03/01/2020,30258499,1459.50,Revenue,Reed Specialist Recruitment Limited,External Temporary Staff
Peterborough City Council,People & Communities,Early Help ASC/CSC,Agency Staff,03/01/2020,30258501,575.17,Revenue,Reed Specialist Recruitment Limited,External Temporary Staff
Peterborough City Council,Governance,Legal Services,Agency Staff,03/01/2020,30258513,2025.38,Revenue,Reed Specialist Recruitment Limited,External Temporary Staff
Peterborough City Council,Governance,Legal Services,Agency Staff,03/01/2020,30258517,1837.05,Revenue,Reed Specialist Recruitment Limited,External Temporary Staff
Peterborough City Council,Governance,Legal Services,Agency Staff,03/01/2020,30258541,1195.27,Revenue,Reed Specialist Recruitment Limited,External Temporary Staff
Peterborough City Council,People & Communities,Home Services Delivery Model,Customer and client receipts - Fees & Charges,03/01/2020,30258027,-2904.00,Revenue,Richard Masham Building Services,Grant Payment
Peterborough City Council,Corporate,Corporate,Non Revenue,03/01/2020,30258027,22264.00,Capital,Richard Masham Building Services,Grant Payment
Peterborough City Council,People & Communities,Independent Sector Placements,Services,03/01/2020,30257797,823.00,Revenue,Richmond Fellowship (The),Residential Care
Peterborough City Council,People & Communities,Independent Sector Placements,Services,03/01/2020,30257798,561.00,Revenue,Richmond Fellowship (The),Residential Care
Peterborough City Council,People & Communities,Independent Sector Placements,Services,03/01/2020,30257963,3292.00,Revenue,Richmond Fellowship (The),Residential Care
Peterborough City Council,People & Communities,Independent Sector Placements,Services,03/01/2020,30257964,514.37,Revenue,Richmond Fellowship (The),Residential Care
Peterborough City Council,People & Communities,Independent Sector Placements,Services,03/01/2020,30257966,823.00,Revenue,Richmond Fellowship (The),Residential Care
Peterborough City Council,People & Communities,Independent Sector Placements,Services,03/01/2020,30257971,561.00,Revenue,Richmond Fellowship (The),Residential Care
Peterborough City Council,People & Communities,Independent Sector Placements,Services,03/01/2020,30257996,2277.92,Revenue,Richmond Fellowship (The),Residential Care
Peterborough City Council,People & Communities,Independent Sector Placements,Services,03/01/2020,30257997,2277.92,Revenue,Richmond Fellowship (The),Residential Care
Peterborough City Council,People & Communities,Independent Sector Placements,Services,03/01/2020,30257998,2204.44,Revenue,Richmond Fellowship (The),Residential Care
Peterborough City Council,People & Communities,Independent Sector Placements,Services,03/01/2020,30257999,823.00,Revenue,Richmond Fellowship (The),Residential Care
Peterborough City Council,People & Communities,Independent Sector Placements,Services,03/01/2020,30258001,823.00,Revenue,Richmond Fellowship (The),Residential Care
Peterborough City Council,People & Communities,Independent Sector Placements,Services,03/01/2020,30257770,3418.32,Revenue,Sanctuary Home Care Ltd (Southwood House),Residential Care
Peterborough City Council,People & Communities,Mental Capacity Act & DoLs,Agency Staff,03/01/2020,30258041,3420.00,Revenue,Sanctuary Personnel Ltd,External Temporary Staff
Peterborough City Council,People & Communities,Therapy/Reablement/Community Equipment,Agency Staff,03/01/2020,30258463,5084.40,Revenue,Sanctuary Personnel Ltd,External Temporary Staff
Peterborough City Council,People & Communities,Therapy/Reablement/Community Equipment,Agency Staff,03/01/2020,30258475,3996.00,Revenue,Sanctuary Personnel Ltd,External Temporary Staff
Peterborough City Council,People & Communities,Therapy/Reablement/Community Equipment,Agency Staff,03/01/2020,30258550,2140.80,Revenue,Sanctuary Personnel Ltd,External Temporary Staff
Peterborough City Council,People & Communities,Therapy/Reablement/Community Equipment,Agency Staff,03/01/2020,30258558,2264.40,Revenue,Sanctuary Personnel Ltd,External Temporary Staff
Peterborough City Council,People & Communities,Therapy/Reablement/Community Equipment,Agency Staff,03/01/2020,30258559,4528.80,Revenue,Sanctuary Personnel Ltd,External Temporary Staff
Peterborough City Council,People & Communities,Therapy/Reablement/Community Equipment,Agency Staff,03/01/2020,30258766,4281.60,Revenue,Sanctuary Personnel Ltd,External Temporary Staff
Peterborough City Council,People & Communities,Access to Resources & Specialist Commissioning,Schools,03/01/2020,30257715,12960.00,Revenue,Semi-Independent House,Boarding Out Fees
Peterborough City Council,People & Communities,Access to Resources & Specialist Commissioning,Schools,03/01/2020,30257716,12960.00,Revenue,Semi-Independent House,Boarding Out Fees
Peterborough City Council,People & Communities,Access to Resources & Specialist Commissioning,Schools,03/01/2020,30257717,12960.00,Revenue,Semi-Independent House,Boarding Out Fees
Peterborough City Council,People & Communities,Block Contracts,Contract Hire and Operating Leases,03/01/2020,30257077,5034.04,Revenue,Sense,Hired Transport
Peterborough City Council,People & Communities,Home Services Delivery Model,Customer and client receipts - Fees & Charges,03/01/2020,30257849,-213.28,Revenue,Sovereign Property Services Ltd,Grant Payment
Peterborough City Council,Corporate,Corporate,Non Revenue,03/01/2020,30257849,1635.14,Capital,Sovereign Property Services Ltd,Grant Payment
Peterborough City Council,People & Communities,Home Services Delivery Model,Customer and client receipts - Fees & Charges,03/01/2020,30257850,-552.79,Revenue,Sovereign Property Services Ltd,Grant Payment
Peterborough City Council,Corporate,Corporate,Non Revenue,03/01/2020,30257850,3929.29,Capital,Sovereign Property Services Ltd,Grant Payment
Peterborough City Council,Corporate,Corporate,Non Revenue,03/01/2020,30258020,1306.77,Capital,Sovereign Property Services Ltd,Grant Payment
Peterborough City Council,People & Communities,Home Services Delivery Model,Customer and client receipts - Fees & Charges,03/01/2020,30258022,-1507.02,Revenue,Sovereign Property Services Ltd,Grant Payment
Peterborough City Council,Corporate,Corporate,Non Revenue,03/01/2020,30258022,30000.00,Capital,Sovereign Property Services Ltd,Grant Payment
Peterborough City Council,Corporate,Corporate,Non Revenue,03/01/2020,30258022,-12000.00,Capital,Sovereign Property Services Ltd,Grant Payment
Peterborough City Council,Corporate,Corporate,Non Revenue,03/01/2020,30258022,-12530.94,Capital,Sovereign Property Services Ltd,Grant Payment
Peterborough City Council,Corporate,Corporate,Non Revenue,03/01/2020,30258022,-1689.72,Capital,Sovereign Property Services Ltd,Grant Payment
Peterborough City Council,Corporate,Corporate,Non Revenue,03/01/2020,30258022,-450.00,Capital,Sovereign Property Services Ltd,Grant Payment
Peterborough City Council,People & Communities,Home Services Delivery Model,Customer and client receipts - Fees & Charges,03/01/2020,30258025,-2216.31,Revenue,Sovereign Property Services Ltd,Home Care
Peterborough City Council,Corporate,Corporate,Non Revenue,03/01/2020,30258025,17364.49,Capital,Sovereign Property Services Ltd,Grant Payment
Peterborough City Council,Corporate,Corporate,Non Revenue,03/01/2020,30258220,850.00,Capital,Spotless {Cleaning Services},Grant Payment
Peterborough City Council,People & Communities,Access to Resources & Specialist Commissioning,Schools,03/01/2020,30257817,780.01,Revenue,Swiis Foster Care Ltd,Boarding Out Fees
Peterborough City Council,People & Communities,Access to Resources & Specialist Commissioning,Schools,03/01/2020,30257886,764.40,Revenue,Swiis Foster Care Ltd,Boarding Out Fees
Peterborough City Council,Corporate,Corporate,Non Revenue,03/01/2020,30258224,167214.06,Balance Sheet,Teachers Pensions,Pensions
Peterborough City Council,Corporate,Corporate,Non Revenue,03/01/2020,30258224,72726.34,Balance Sheet,Teachers Pensions,Pensions
Peterborough City Council,Corporate,Corporate,Non Revenue,03/01/2020,30258224,51438.23,Balance Sheet,Teachers Pensions,Pensions
Peterborough City Council,Corporate,Corporate,Non Revenue,03/01/2020,30258224,10386.53,Balance Sheet,Teachers Pensions,Pensions
Peterborough City Council,Corporate,Corporate,Non Revenue,03/01/2020,30258224,23869.70,Balance Sheet,Teachers Pensions,Pensions
Peterborough City Council,Corporate,Corporate,Non Revenue,03/01/2020,30258224,9374.61,Balance Sheet,Teachers Pensions,Pensions
Peterborough City Council,Corporate,Corporate,Non Revenue,03/01/2020,30258224,10612.26,Balance Sheet,Teachers Pensions,Pensions
Peterborough City Council,Corporate,Corporate,Non Revenue,03/01/2020,30258224,11565.94,Balance Sheet,Teachers Pensions,Pensions
Peterborough City Council,Corporate,Corporate,Non Revenue,03/01/2020,30258224,5509.62,Balance Sheet,Teachers Pensions,Pensions
Peterborough City Council,Corporate,Corporate,Non Revenue,03/01/2020,30258224,10853.37,Balance Sheet,Teachers Pensions,Pensions
Peterborough City Council,Corporate,Corporate,Non Revenue,03/01/2020,30258224,19191.82,Balance Sheet,Teachers Pensions,Pensions
Peterborough City Council,Corporate,Corporate,Non Revenue,03/01/2020,30258224,31320.99,Balance Sheet,Teachers Pensions,Pensions
Peterborough City Council,Corporate,Corporate,Non Revenue,03/01/2020,30258224,25034.66,Balance Sheet,Teachers Pensions,Pensions
Peterborough City Council,Corporate,Corporate,Non Revenue,03/01/2020,30258224,7563.06,Balance Sheet,Teachers Pensions,Pensions
Peterborough City Council,Corporate,Corporate,Non Revenue,03/01/2020,30258224,11390.30,Balance Sheet,Teachers Pensions,Pensions
Peterborough City Council,Corporate,Corporate,Non Revenue,03/01/2020,30258224,10480.83,Balance Sheet,Teachers Pensions,Pensions
Peterborough City Council,Corporate,Corporate,Non Revenue,03/01/2020,30258224,19747.20,Balance Sheet,Teachers Pensions,Pensions
Peterborough City Council,Corporate,Corporate,Non Revenue,03/01/2020,30258224,26087.56,Balance Sheet,Teachers Pensions,Pensions
Peterborough City Council,Corporate,Corporate,Non Revenue,03/01/2020,30258224,10784.61,Balance Sheet,Teachers Pensions,Pensions
Peterborough City Council,Corporate,Corporate,Non Revenue,03/01/2020,30258224,32340.88,Balance Sheet,Teachers Pensions,Pensions
Peterborough City Council,Corporate,Corporate,Non Revenue,03/01/2020,30258224,13698.71,Balance Sheet,Teachers Pensions,Pensions
Peterborough City Council,Corporate,Corporate,Non Revenue,03/01/2020,30258224,17432.93,Balance Sheet,Teachers Pensions,Pensions
Peterborough City Council,Corporate,Corporate,Non Revenue,03/01/2020,30258224,37238.85,Balance Sheet,Teachers Pensions,Pensions
Peterborough City Council,Corporate,Corporate,Non Revenue,03/01/2020,30258224,28136.71,Balance Sheet,Teachers Pensions,Pensions
Peterborough City Council,Corporate,Corporate,Non Revenue,03/01/2020,30258224,25650.42,Balance Sheet,Teachers Pensions,Pensions
Peterborough City Council,People & Communities,Independent Sector Placements,Services,03/01/2020,30257786,1852.48,Revenue,The Cedars Bourne Care Home,Residential Care
Peterborough City Council,People & Communities,Special Educational Needs / Inclusion,Agency Staff,03/01/2020,30258461,3675.00,Revenue,The Guide Dogs for the Blind Association,External Temporary Staff
Peterborough City Council,Governance,Legal Services,Services,03/01/2020,30258282,1005.32,Revenue,The Psychological Service,Jurors/Expert Witnesses
Peterborough City Council,People & Communities,Independent Sector Placements,Services,03/01/2020,30257772,688.00,Revenue,Thera East Anglia,Daycare
Peterborough City Council,People & Communities,Independent Sector Placements,Services,03/01/2020,30257773,860.00,Revenue,Thera East Anglia,Daycare
Peterborough City Council,People & Communities,Independent Sector Placements,Services,03/01/2020,30257775,2440.00,Revenue,Thera East Anglia,Daycare
Peterborough City Council,People & Communities,Independent Sector Placements,Services,03/01/2020,30257776,756.00,Revenue,Thera East Anglia,Daycare
Peterborough City Council,People & Communities,Independent Sector Placements,Services,03/01/2020,30257782,2440.00,Revenue,Thera East Anglia,Daycare
Peterborough City Council,People & Communities,Independent Sector Placements,Services,03/01/2020,30257783,860.00,Revenue,Thera East Anglia,Daycare
Peterborough City Council,People & Communities,Independent Sector Placements,Services,03/01/2020,30257784,3515.00,Revenue,Thera East Anglia,Daycare
Peterborough City Council,People & Communities,Access to Resources & Specialist Commissioning,Schools,03/01/2020,30254600,819.00,Revenue,Transition Care Peterborough Ltd,Boarding Out Fees
Peterborough City Council,People & Communities,Access to Resources & Specialist Commissioning,Schools,03/01/2020,30254780,819.00,Revenue,Transition Care Peterborough Ltd,Boarding Out Fees
Peterborough City Council,People & Communities,Access to Resources & Specialist Commissioning,Schools,03/01/2020,30256935,875.00,Revenue,Transition Care Peterborough Ltd,Boarding Out Fees
Peterborough City Council,People & Communities,Access to Resources & Specialist Commissioning,Schools,03/01/2020,30256936,1150.03,Revenue,Transition Care Peterborough Ltd,Boarding Out Fees
Peterborough City Council,People & Communities,Access to Resources & Specialist Commissioning,Schools,03/01/2020,30256938,1150.03,Revenue,Transition Care Peterborough Ltd,Boarding Out Fees
Peterborough City Council,People & Communities,Access to Resources & Specialist Commissioning,Schools,03/01/2020,30256940,1150.03,Revenue,Transition Care Peterborough Ltd,Boarding Out Fees
Peterborough City Council,People & Communities,Access to Resources & Specialist Commissioning,Schools,03/01/2020,30256942,819.00,Revenue,Transition Care Peterborough Ltd,Boarding Out Fees
Peterborough City Council,People & Communities,Access to Resources & Specialist Commissioning,Schools,03/01/2020,30257922,819.00,Revenue,Transition Care Peterborough Ltd,Boarding Out Fees
Peterborough City Council,People & Communities,Access to Resources & Specialist Commissioning,Schools,03/01/2020,30257929,1150.03,Revenue,Transition Care Peterborough Ltd,Boarding Out Fees
Peterborough City Council,People & Communities,Access to Resources & Specialist Commissioning,Schools,03/01/2020,30257931,1150.03,Revenue,Transition Care Peterborough Ltd,Boarding Out Fees
Peterborough City Council,People & Communities,Access to Resources & Specialist Commissioning,Schools,03/01/2020,30257934,1150.03,Revenue,Transition Care Peterborough Ltd,Boarding Out Fees
Peterborough City Council,People & Communities,Access to Resources & Specialist Commissioning,Schools,03/01/2020,30257718,14500.00,Revenue,Unique Care Homes Support Limited,Boarding Out Fees
Peterborough City Council,People & Communities,Special Educational Needs / Inclusion,Services,03/01/2020,30258732,6375.00,Revenue,University College London,Conferences
Peterborough City Council,Governance,Legal Services,Agency Staff,03/01/2020,30258352,2062.50,Revenue,Venn Group Ltd,External Temporary Staff
Peterborough City Council,Governance,Legal Services,Agency Staff,03/01/2020,30258354,2035.00,Revenue,Venn Group Ltd,External Temporary Staff
Peterborough City Council,Governance,Legal Services,Agency Staff,03/01/2020,30258356,1887.00,Revenue,Venn Group Ltd,External Temporary Staff
Peterborough City Council,Governance,Legal Services,Agency Staff,03/01/2020,30258358,679.91,Revenue,Venn Group Ltd,External Temporary Staff
Peterborough City Council,People & Communities,Regulatory Services,"Tools, Equipment, Furniture & Materials",03/01/2020,30258753,3550.64,Revenue,VIP-System Ltd,Equipment
Peterborough City Council,People & Communities,Independent Sector Placements,Services,03/01/2020,30257788,5563.40,Revenue,Voyage 1 Limited,Residential Care
Peterborough City Council,People & Communities,Independent Sector Placements,Services,03/01/2020,30257790,5065.40,Revenue,Voyage 1 Limited,Residential Care
Peterborough City Council,People & Communities,Independent Sector Placements,Services,03/01/2020,30257793,4358.48,Revenue,Voyage 1 Limited,Residential Care
Peterborough City Council,People & Communities,Independent Sector Placements,Services,03/01/2020,30257795,4878.12,Revenue,Voyage 1 Limited,Residential Care
Peterborough City Council,Resources,PSSP Retained Services,Services,03/01/2020,30258480,1547.23,Revenue,Whistl UK Ltd,Postage
Peterborough City Council,Resources,PSSP Retained Services,Services,03/01/2020,30258684,1437.63,Revenue,Whistl UK Ltd,Postage
Peterborough City Council,People & Communities,Access to Resources & Specialist Commissioning,Schools,03/01/2020,30257832,15290.44,Revenue,Windows for Children,Boarding Out Fees
Peterborough City Council,Place & Economy,Westcombe Engineering,Services,06/01/2020,30258738,969.00,Revenue,AALCO,Materials
Peterborough City Council,People & Communities,Therapy/Reablement/Community Equipment,"Tools, Equipment, Furniture & Materials",06/01/2020,30258828,786.75,Revenue,Action on Hearing Loss (Equipment),Occupational Therapy Equipment
Peterborough City Council,People & Communities,Independent Sector Placements,Services,06/01/2020,30258402,1039.05,Revenue,Athena (Ashlynn Grange),Residential Care
Peterborough City Council,Corporate,Corporate,Non Revenue,06/01/2020,30258884,1575.00,Capital,B & H Services Group Ltd,Building And Site Works
Peterborough City Council,People & Communities,Independent Sector Placements,Services,06/01/2020,30258953,800.00,Revenue,Barchester Healthcare (Werrington Lodge),Respite Care
Peterborough City Council,People & Communities,Independent Sector Placements,Services,06/01/2020,30258977,871.00,Revenue,Barchester Healthcare (Werrington Lodge),Respite Care
Peterborough City Council,People & Communities,Independent Sector Placements,Services,06/01/2020,30259049,607.44,Revenue,Barchester Healthcare (Werrington Lodge),Residential Care
Peterborough City Council,People & Communities,Independent Sector Placements,Services,06/01/2020,30259061,510.89,Revenue,Barchester Healthcare (Werrington Lodge),Residential Care
Peterborough City Council,Place & Economy,Transport & Infrastructure Commissioning,Services,06/01/2020,30259063,3450.00,Revenue,Basemap Ltd,Licences
Peterborough City Council,Resources,Commercial Propety,Repair & Maintenance of Buildings,06/01/2020,30256361,1933.50,Revenue,Bee Lettings Ltd,Maintenance
Peterborough City Council,Place & Economy,"Markets, Tourism & Events",Energy Costs,06/01/2020,30259066,120.82,Revenue,British Gas Business,Electricity
Peterborough City Council,Place & Economy,"Markets, Tourism & Events",Energy Costs,06/01/2020,30259066,3.44,Revenue,British Gas Business,Electricity
Peterborough City Council,Place & Economy,"Markets, Tourism & Events",Energy Costs,06/01/2020,30259066,28.11,Revenue,British Gas Business,Electricity
Peterborough City Council,Place & Economy,"Markets, Tourism & Events",Energy Costs,06/01/2020,30259066,17.78,Revenue,British Gas Business,Electricity
Peterborough City Council,Place & Economy,"Markets, Tourism & Events",Energy Costs,06/01/2020,30259066,-123.60,Revenue,British Gas Business,Electricity
Peterborough City Council,Place & Economy,"Markets, Tourism & Events",Energy Costs,06/01/2020,30259066,335.20,Revenue,British Gas Business,Electricity
Peterborough City Council,Place & Economy,Waste & Operational Svs Mgmt,Energy Costs,06/01/2020,30259066,5.45,Revenue,British Gas Business,Electricity
Peterborough City Council,Place & Economy,Waste & Operational Svs Mgmt,Energy Costs,06/01/2020,30259066,67.42,Revenue,British Gas Business,Electricity
Peterborough City Council,People & Communities,Community Capacity,Energy Costs,06/01/2020,30259066,52.08,Revenue,British Gas Business,Electricity
Peterborough City Council,People & Communities,Finance,Agency Staff,06/01/2020,30258924,2030.98,Revenue,Caritas Recruitment,External Temporary Staff
Peterborough City Council,People & Communities,Children's Social Care,Agency Staff,06/01/2020,30258925,4014.66,Revenue,Caritas Recruitment,External Temporary Staff
Peterborough City Council,People & Communities,PFI,Energy Costs,06/01/2020,30258734,3311.98,Revenue,Corona Energy Retail 4 Limited,Gas
Peterborough City Council,Resources,Commercial Propety,Energy Costs,06/01/2020,30258734,119.96,Revenue,Corona Energy Retail 4 Limited,Gas
Peterborough City Council,Resources,Commercial Propety,Energy Costs,06/01/2020,30258734,119.96,Revenue,Corona Energy Retail 4 Limited,Gas
Peterborough City Council,Resources,Registration Service,Energy Costs,06/01/2020,30258734,99.76,Revenue,Corona Energy Retail 4 Limited,Gas
Peterborough City Council,Resources,Registration Service,Energy Costs,06/01/2020,30258734,190.80,Revenue,Corona Energy Retail 4 Limited,Gas
Peterborough City Council,Resources,Office Accomodation,Energy Costs,06/01/2020,30258734,128.58,Revenue,Corona Energy Retail 4 Limited,Gas
Peterborough City Council,Place & Economy,Waste & Operational Svs Mgmt,Energy Costs,06/01/2020,30258734,228.55,Revenue,Corona Energy Retail 4 Limited,Gas
Peterborough City Council,People & Communities,Cultural Services,Energy Costs,06/01/2020,30258734,229.37,Revenue,Corona Energy Retail 4 Limited,Gas
Peterborough City Council,People & Communities,Cultural Services,Energy Costs,06/01/2020,30258734,2298.00,Revenue,Corona Energy Retail 4 Limited,Gas
Peterborough City Council,People & Communities,Cultural Services,Energy Costs,06/01/2020,30258734,2516.45,Revenue,Corona Energy Retail 4 Limited,Gas
Peterborough City Council,People & Communities,Commissioning,Services,06/01/2020,30258869,792.50,Revenue,Crisp and Crane Training Limited,Hired Services
Peterborough City Council,People & Communities,Housing,Services,06/01/2020,30258865,8828.17,Revenue,DA Rosalia Hotel,Temporary Accommodation Costs
Peterborough City Council,People & Communities,Home Services Delivery Model,Services,06/01/2020,30258847,998.75,Revenue,Handyman Steve,Contractors
Peterborough City Council,People & Communities,Children's Social Care,Agency Staff,06/01/2020,30257802,5251.23,Revenue,HCL Social Care Ltd,External Temporary Staff
Peterborough City Council,Resources,Capital Financing,Interest Payments,06/01/2020,30258938,339.73,Revenue,Imperial Treasury Service Ltd,Loan Interest Paid
Peterborough City Council,Resources,Capital Financing,Interest Payments,06/01/2020,30258938,339.73,Revenue,Imperial Treasury Service Ltd,Loan Interest Paid
Peterborough City Council,Resources,Capital Financing,Interest Payments,06/01/2020,30258938,339.73,Revenue,Imperial Treasury Service Ltd,Loan Interest Paid
Peterborough City Council,People & Communities,Commissioning,Services,06/01/2020,30259110,836.60,Revenue,Jackson Resolutions Ltd,Hired Services
Peterborough City Council,People & Communities,Parking,Agency Staff,06/01/2020,30259111,2176.00,Revenue,L A Support Limited,External Temporary Staff
Peterborough City Council,People & Communities,Housing,Services,06/01/2020,30258856,18000.00,Revenue,Light Project Peterborough,Financial Assistance
Peterborough City Council,People & Communities,Special Educational Needs / Inclusion,Services,06/01/2020,30258428,12495.00,Revenue,Lind Associates,Conferences
Peterborough City Council,People & Communities,Special Educational Needs / Inclusion,Services,06/01/2020,30258857,16362.50,Revenue,Lind Associates,Conferences
Peterborough City Council,People & Communities,Independent Sector Placements,Services,06/01/2020,30248135,685.44,Revenue,Longhurst Group Limited,Home Care
Peterborough City Council,Place & Economy,Westcombe Engineering,Services,06/01/2020,30258851,1260.00,Revenue,Macfarlane Packaging,Materials
Peterborough City Council,People & Communities,Independent Sector Placements,Services,06/01/2020,30258688,591.38,Revenue,MEARS GROUP,Home Care
Peterborough City Council,People & Communities,Children's Social Care,Services,06/01/2020,30259043,1700.00,Revenue,Mobile Play Therapy,Professional Services
Peterborough City Council,People & Communities,School Standards & Effectiveness,Services,06/01/2020,30258931,562.50,Revenue,National Governance Association  (NGA),Subscriptions
Peterborough City Council,People & Communities,Schools Finance,Services,06/01/2020,30258843,236724.00,Revenue,NHS Cambs & P'boro CCG (Clinical Commissioning Group),Hired Services
Peterborough City Council,Resources,Commercial Propety,Other Establishments,06/01/2020,30256332,-192283.00,Revenue,NPS Peterborough Ltd,Third Party Payments - Contract
Peterborough City Council,Resources,Commercial Propety,Other Establishments,06/01/2020,30257796,192283.00,Revenue,NPS Peterborough Ltd,Third Party Payments - Contract
Peterborough City Council,Resources,Commercial Propety,Services,06/01/2020,30258058,3180.00,Revenue,NPS Peterborough Ltd,Professional Services
Peterborough City Council,People & Communities,OP/PD/SI,"Tools, Equipment, Furniture & Materials",06/01/2020,30258823,84218.95,Revenue,NRS Healthcare,Occupational Therapy Equipment
Peterborough City Council,People & Communities,OP/PD/SI,"Tools, Equipment, Furniture & Materials",06/01/2020,30258824,972.37,Revenue,NRS Healthcare,Occupational Therapy Equipment
Peterborough City Council,People & Communities,Independent Sector Placements,Services,06/01/2020,30258901,962.92,Revenue,Oakhouse Homecare Cambs Ltd,Residential Care
Peterborough City Council,Place & Economy,Planning Compliance,Agency Staff,06/01/2020,30258811,1546.35,Revenue,Park Avenue Recruitment Limited,External Temporary Staff
Peterborough City Council,Corporate,Corporate,Non Revenue,06/01/2020,30258934,1220.00,Capital,Paul Clarke CNC Machine Tool Services,Furniture And Equipment Purchase
Peterborough City Council,People & Communities,Independent Sector Placements,Services,06/01/2020,30258060,1348.25,Revenue,Peterborough Care  The Maltings,Residential Care
Peterborough City Council,People & Communities,Independent Sector Placements,Services,06/01/2020,30258062,14091.71,Revenue,Peterborough Care  The Maltings,Residential Care
Peterborough City Council,People & Communities,Independent Sector Placements,Services,06/01/2020,30258068,20987.10,Revenue,Peterborough Care  The Maltings,Residential Care
Peterborough City Council,Corporate,Corporate,Non Revenue,06/01/2020,30258940,500.00,Capital,PETERBOROUGH FOOTBALL & SPORTS DEVELOPMENT FOUNDATION,Grant Payment
Peterborough City Council,Place & Economy,Westcombe Engineering,Services,06/01/2020,30258174,3376.24,Revenue,Purbright Castings Ltd,Materials
Peterborough City Council,People & Communities,Home Services Delivery Model,Services,06/01/2020,30258059,935.00,Revenue,Rawheat Heating & Plumbing Eng.,Contractors
Peterborough City Council,Governance,Legal Services,Services,06/01/2020,30258825,850.00,Revenue,Spotless {Cleaning Services},Legal Costs
Peterborough City Council,Governance,Legal Services,Services,06/01/2020,30258826,650.00,Revenue,Reed Specialist Recruitment Limited,Legal Costs
Peterborough City Council,Governance,Legal Services,Agency Staff,06/01/2020,30258926,1512.50,Revenue,Fiona Spinks,External Temporary Staff
Peterborough City Council,People & Communities,HTS & CSC Transport,Contract Hire and Operating Leases,06/01/2020,8000158195,1186.50,Revenue,Redacted Personal Information,Hired Transport
Peterborough City Council,People & Communities,HTS & CSC Transport,Contract Hire and Operating Leases,06/01/2020,8000158195,7.12,Revenue,Redacted Personal Information,Hired Transport
Peterborough City Council,People & Communities,HTS & CSC Transport,Contract Hire and Operating Leases,06/01/2020,8000158195,15.37,Revenue,Redacted Personal Information,Hired Transport
Peterborough City Council,People & Communities,HTS & CSC Transport,Contract Hire and Operating Leases,06/01/2020,8000158195,22.50,Revenue,Redacted Personal Information,Hired Transport
Peterborough City Council,People & Communities,HTS & CSC Transport,Contract Hire and Operating Leases,06/01/2020,8000158196,68.62,Revenue,Redacted Personal Information,Hired Transport
Peterborough City Council,People & Communities,HTS & CSC Transport,Contract Hire and Operating Leases,06/01/2020,8000158196,17.99,Revenue,Redacted Personal Information,Hired Transport
Peterborough City Council,People & Communities,HTS & CSC Transport,Contract Hire and Operating Leases,06/01/2020,8000158196,285.37,Revenue,Redacted Personal Information,Hired Transport
Peterborough City Council,People & Communities,HTS & CSC Transport,Contract Hire and Operating Leases,06/01/2020,8000158196,905.63,Revenue,Redacted Personal Information,Hired Transport
Peterborough City Council,People & Communities,HTS & CSC Transport,Contract Hire and Operating Leases,06/01/2020,8000158198,134.62,Revenue,Redacted Personal Information,Hired Transport
Peterborough City Council,People & Communities,HTS & CSC Transport,Contract Hire and Operating Leases,06/01/2020,8000158198,971.62,Revenue,Redacted Personal Information,Hired Transport
Peterborough City Council,People & Communities,HTS & CSC Transport,Contract Hire and Operating Leases,06/01/2020,8000158199,943.50,Revenue,Redacted Personal Information,Hired Transport
Peterborough City Council,People & Communities,HTS & CSC Transport,Contract Hire and Operating Leases,06/01/2020,8000158200,805.88,Revenue,Redacted Personal Information,Hired Transport
Peterborough City Council,People & Communities,HTS & CSC Transport,Contract Hire and Operating Leases,06/01/2020,8000158200,18.32,Revenue,Redacted Personal Information,Hired Transport
Peterborough City Council,People & Communities,HTS & CSC Transport,Contract Hire and Operating Leases,06/01/2020,8000158200,158.09,Revenue,Redacted Personal Information,Hired Transport
Peterborough City Council,People & Communities,HTS & CSC Transport,Contract Hire and Operating Leases,06/01/2020,8000158202,601.88,Revenue,Redacted Personal Information,Hired Transport
Peterborough City Council,People & Communities,HTS & CSC Transport,Contract Hire and Operating Leases,06/01/2020,8000158202,140.99,Revenue,Redacted Personal Information,Hired Transport
Peterborough City Council,Governance,Legal Services,Agency Staff,06/01/2020,30258830,1459.50,Revenue,Reed Specialist Recruitment Limited,External Temporary Staff
Peterborough City Council,People & Communities,Mental Capacity Act & DoLs,Agency Staff,06/01/2020,30257693,3800.00,Revenue,Sanctuary Personnel Ltd,External Temporary Staff
Peterborough City Council,People & Communities,Mental Capacity Act & DoLs,Agency Staff,06/01/2020,30259007,760.00,Revenue,Sanctuary Personnel Ltd,External Temporary Staff
Peterborough City Council,People & Communities,Mental Capacity Act & DoLs,Agency Staff,06/01/2020,30259020,1520.00,Revenue,Sanctuary Personnel Ltd,External Temporary Staff
Peterborough City Council,People & Communities,Mental Capacity Act & DoLs,Agency Staff,06/01/2020,30259077,3420.00,Revenue,Sanctuary Personnel Ltd,External Temporary Staff
Peterborough City Council,People & Communities,Therapy/Reablement/Community Equipment,Agency Staff,06/01/2020,30259105,1132.20,Revenue,Sanctuary Personnel Ltd,External Temporary Staff
Peterborough City Council,People & Communities,Cultural Services,Services,06/01/2020,30258834,4200.00,Revenue,Selladoor Venues (Peterborough) Ltd,Hired Services
Peterborough City Council,People & Communities,Housing,Services,06/01/2020,30258956,3150.00,Revenue,Singh and Sons Property Management Ltd,Temporary Accommodation Costs
Peterborough City Council,People & Communities,Housing,Services,06/01/2020,30258958,2795.00,Revenue,Singh and Sons Property Management Ltd,Temporary Accommodation Costs
Peterborough City Council,People & Communities,Housing,Services,06/01/2020,30258961,3220.00,Revenue,Singh and Sons Property Management Ltd,Temporary Accommodation Costs
Peterborough City Council,People & Communities,Housing,Services,06/01/2020,30258965,1890.00,Revenue,Singh and Sons Property Management Ltd,Temporary Accommodation Costs
Peterborough City Council,Resources,PSSP Retained Services,Services,06/01/2020,30258842,5899.06,Revenue,Whistl UK Ltd,Postage
Peterborough City Council,Resources,Bereavement Service,Services,06/01/2020,30259044,627.32,Revenue,Yaboo Company Ltd T/a Wesley Music,Materials
Peterborough City Council,Place & Economy,Westcombe Engineering,Services,08/01/2020,30258995,531.00,Revenue,AALCO,Materials
Peterborough City Council,People & Communities,Independent Sector Placements,Services,08/01/2020,30258905,1608.76,Revenue,ABBEYGATE REST HOME,Residential Care
Peterborough City Council,People & Communities,Independent Sector Placements,Services,08/01/2020,30258906,1608.76,Revenue,ABBEYGATE REST HOME,Residential Care
Peterborough City Council,People & Communities,Therapy/Reablement/Community Equipment,"Tools, Equipment, Furniture & Materials",08/01/2020,30258831,788.79,Revenue,Action on Hearing Loss (Equipment),Occupational Therapy Equipment
Peterborough City Council,People & Communities,Therapy/Reablement/Community Equipment,"Tools, Equipment, Furniture & Materials",08/01/2020,30258832,741.59,Revenue,Action on Hearing Loss (Equipment),Occupational Therapy Equipment
Peterborough City Council,People & Communities,Therapy/Reablement/Community Equipment,"Tools, Equipment, Furniture & Materials",08/01/2020,30258833,735.97,Revenue,Action on Hearing Loss (Equipment),Occupational Therapy Equipment
Peterborough City Council,Corporate,Corporate,Non Revenue,08/01/2020,30258067,1220.00,Capital,Allworks Home Improvements Ltd,Building And Site Works
Peterborough City Council,Corporate,Corporate,Non Revenue,08/01/2020,30258093,800.00,Capital,Allworks Home Improvements Ltd,Building And Site Works
Peterborough City Council,Corporate,Corporate,Non Revenue,08/01/2020,30258094,2000.00,Capital,Allworks Home Improvements Ltd,Building And Site Works
Peterborough City Council,Corporate,Corporate,Non Revenue,08/01/2020,30258095,2000.00,Capital,Allworks Home Improvements Ltd,Building And Site Works
Peterborough City Council,Corporate,Corporate,Non Revenue,08/01/2020,30258096,1000.00,Capital,Allworks Home Improvements Ltd,Building And Site Works
Peterborough City Council,Corporate,Corporate,Non Revenue,08/01/2020,30258099,1600.00,Capital,Allworks Home Improvements Ltd,Building And Site Works
Peterborough City Council,Corporate,Corporate,Non Revenue,08/01/2020,30258105,1200.00,Capital,Allworks Home Improvements Ltd,Building And Site Works
Peterborough City Council,Corporate,Corporate,Non Revenue,08/01/2020,30258109,2847.00,Capital,Allworks Home Improvements Ltd,Building And Site Works
Peterborough City Council,Corporate,Corporate,Non Revenue,08/01/2020,30258112,2847.00,Capital,Allworks Home Improvements Ltd,Building And Site Works
Peterborough City Council,Corporate,Corporate,Non Revenue,08/01/2020,30258114,1284.00,Capital,Allworks Home Improvements Ltd,Building And Site Works
Peterborough City Council,Corporate,Corporate,Non Revenue,08/01/2020,30258116,2333.00,Capital,Allworks Home Improvements Ltd,Building And Site Works
Peterborough City Council,People & Communities,Independent Sector Placements,Services,08/01/2020,30257856,1810.40,Revenue,Alysia Caring Ltd T/a Cherry Blossom care Home,Residential Care
Peterborough City Council,People & Communities,Independent Sector Placements,Services,08/01/2020,30257857,2087.40,Revenue,Alysia Caring Ltd T/a Cherry Blossom care Home,Residential Care
Peterborough City Council,People & Communities,Independent Sector Placements,Services,08/01/2020,30257858,1116.32,Revenue,Alysia Caring Ltd T/a Cherry Blossom care Home,Residential Care
Peterborough City Council,People & Communities,Independent Sector Placements,Services,08/01/2020,30257859,1714.80,Revenue,Alysia Caring Ltd T/a Cherry Blossom care Home,Residential Care
Peterborough City Council,People & Communities,Independent Sector Placements,Services,08/01/2020,30257860,2326.44,Revenue,Alysia Caring Ltd T/a Cherry Blossom care Home,Residential Care
Peterborough City Council,People & Communities,Independent Sector Placements,Services,08/01/2020,30257861,1830.60,Revenue,Alysia Caring Ltd T/a Cherry Blossom care Home,Residential Care
Peterborough City Council,People & Communities,Independent Sector Placements,Services,08/01/2020,30257862,1847.20,Revenue,Alysia Caring Ltd T/a Cherry Blossom care Home,Residential Care
Peterborough City Council,People & Communities,Independent Sector Placements,Services,08/01/2020,30257863,2909.84,Revenue,Alysia Caring Ltd T/a Cherry Blossom care Home,Residential Care
Peterborough City Council,People & Communities,Independent Sector Placements,Services,08/01/2020,30257864,1198.12,Revenue,Alysia Caring Ltd T/a Cherry Blossom care Home,Residential Care
Peterborough City Council,People & Communities,Independent Sector Placements,Services,08/01/2020,30257865,2128.00,Revenue,Alysia Caring Ltd T/a Cherry Blossom care Home,Residential Care
Peterborough City Council,People & Communities,Independent Sector Placements,Services,08/01/2020,30257866,2175.40,Revenue,Alysia Caring Ltd T/a Cherry Blossom care Home,Residential Care
Peterborough City Council,People & Communities,Independent Sector Placements,Services,08/01/2020,30257867,1865.92,Revenue,Alysia Caring Ltd T/a Cherry Blossom care Home,Residential Care
Peterborough City Council,People & Communities,Independent Sector Placements,Services,08/01/2020,30257868,1317.08,Revenue,Alysia Caring Ltd T/a Cherry Blossom care Home,Residential Care
Peterborough City Council,People & Communities,Independent Sector Placements,Services,08/01/2020,30257869,2384.24,Revenue,Alysia Caring Ltd T/a Cherry Blossom care Home,Residential Care
Peterborough City Council,People & Communities,Independent Sector Placements,Services,08/01/2020,30257870,575.04,Revenue,Alysia Caring Ltd T/a Cherry Blossom care Home,Residential Care
Peterborough City Council,People & Communities,Independent Sector Placements,Services,08/01/2020,30257871,802.40,Revenue,Alysia Caring Ltd T/a Cherry Blossom care Home,Residential Care
Peterborough City Council,People & Communities,Independent Sector Placements,Services,08/01/2020,30257872,1172.48,Revenue,Alysia Caring Ltd T/a Cherry Blossom care Home,Residential Care
Peterborough City Council,People & Communities,Independent Sector Placements,Services,08/01/2020,30257873,1334.76,Revenue,Alysia Caring Ltd T/a Cherry Blossom care Home,Residential Care
Peterborough City Council,People & Communities,Independent Sector Placements,Services,08/01/2020,30257874,2366.36,Revenue,Alysia Caring Ltd T/a Cherry Blossom care Home,Residential Care
Peterborough City Council,People & Communities,Independent Sector Placements,Services,08/01/2020,30257875,3137.76,Revenue,Alysia Caring Ltd T/a Cherry Blossom care Home,Residential Care
Peterborough City Council,People & Communities,Independent Sector Placements,Services,08/01/2020,30258705,-5095.59,Revenue,Alysia Caring Ltd T/a Cherry Blossom care Home,Residential Care
Peterborough City Council,People & Communities,Independent Sector Placements,Services,08/01/2020,30258706,-824.72,Revenue,Alysia Caring Ltd T/a Cherry Blossom care Home,Residential Care
Peterborough City Council,People & Communities,Independent Sector Placements,Services,08/01/2020,30258952,3049.72,Revenue,Alysia Caring Ltd T/a Cherry Blossom care Home,Residential Care
Peterborough City Council,Customer & Digital Services,ICT,Members Allowances,08/01/2020,30258941,40498.70,Revenue,Amazon Web Services Inc.,Computer Software
Peterborough City Council,Resources,Bereavement Service,Services,08/01/2020,30257758,1219.00,Revenue,Anglia Co-operative Funerals,Funerals
Peterborough City Council,Chief Executives,HR WFD & Training,Interview & Training Expenses,08/01/2020,30258416,950.00,Revenue,Anglia Ruskin University,Training
Peterborough City Council,People & Communities,Parking Services,Water Services,08/01/2020,30259000,478.76,Revenue,Anglian Water Business National,Water
Peterborough City Council,Place & Economy,Waste & Operational Svs Mgmt,Water Services,08/01/2020,30259000,854.57,Revenue,Anglian Water Business National,Water
Peterborough City Council,People & Communities,Cultural Services,Water Services,08/01/2020,30259000,102.74,Revenue,Anglian Water Business National,Water
Peterborough City Council,People & Communities,Cultural Services,Water Services,08/01/2020,30259000,436.78,Revenue,Anglian Water Business National,Water
Peterborough City Council,People & Communities,Cultural Services,Water Services,08/01/2020,30259000,47.86,Revenue,Anglian Water Business National,Water
Peterborough City Council,People & Communities,Cultural Services,Water Services,08/01/2020,30259000,4406.81,Revenue,Anglian Water Business National,Water
Peterborough City Council,Place & Economy,"Markets, Tourism & Events",Water Services,08/01/2020,30259000,119.69,Revenue,Anglian Water Business National,Water
Peterborough City Council,Resources,Commercial Propety,Water Services,08/01/2020,30259000,11.93,Revenue,Anglian Water Business National,Water
Peterborough City Council,Resources,Commercial Propety,Water Services,08/01/2020,30259000,146.96,Revenue,Anglian Water Business National,Water
Peterborough City Council,Resources,Commercial Propety,Water Services,08/01/2020,30259000,112.78,Revenue,Anglian Water Business National,Water
Peterborough City Council,People & Communities,Regulatory Services,Services,08/01/2020,30259199,1000.00,Revenue,Arcanum Digital Forensics Ltd,Materials
Peterborough City Council,People & Communities,Independent Sector Placements,Services,08/01/2020,30258514,6966.72,Revenue,Autism Care (UK) Ltd,Residential Care
Peterborough City Council,People & Communities,Independent Sector Placements,Services,08/01/2020,30259519,717.36,Revenue,Avery House (Peterborough) t/a Brighterkind,Residential Care
Peterborough City Council,Governance,Elections,Rents,08/01/2020,30258565,504.00,Revenue,Bainton Reading Room,Hire of Equipment
Peterborough City Council,People & Communities,Independent Sector Placements,Services,08/01/2020,30258874,1211.96,Revenue,Barchester Healthcare (Werrington Lodge),Residential Care
Peterborough City Council,People & Communities,Independent Sector Placements,Services,08/01/2020,30258875,1850.40,Revenue,Barchester Healthcare (Werrington Lodge),Residential Care
Peterborough City Council,People & Communities,Independent Sector Placements,Services,08/01/2020,30258876,2487.36,Revenue,Barchester Healthcare (Werrington Lodge),Residential Care
Peterborough City Council,People & Communities,Independent Sector Placements,Services,08/01/2020,30258877,1832.96,Revenue,Barchester Healthcare (Werrington Lodge),Residential Care
Peterborough City Council,People & Communities,Independent Sector Placements,Services,08/01/2020,30258878,1799.80,Revenue,Barchester Healthcare (Werrington Lodge),Residential Care
Peterborough City Council,People & Communities,Independent Sector Placements,Services,08/01/2020,30258879,1705.80,Revenue,Barchester Healthcare (Werrington Lodge),Residential Care
Peterborough City Council,People & Communities,Independent Sector Placements,Services,08/01/2020,30258880,1906.84,Revenue,Barchester Healthcare (Werrington Lodge),Residential Care
Peterborough City Council,People & Communities,Independent Sector Placements,Services,08/01/2020,30258882,1685.00,Revenue,Barchester Healthcare (Werrington Lodge),Residential Care
Peterborough City Council,People & Communities,Independent Sector Placements,Services,08/01/2020,30258969,2487.36,Revenue,Barchester Healthcare (Werrington Lodge),Residential Care
Peterborough City Council,People & Communities,Independent Sector Placements,Services,08/01/2020,30258972,1903.20,Revenue,Barchester Healthcare (Werrington Lodge),Residential Care
Peterborough City Council,People & Communities,Independent Sector Placements,Services,08/01/2020,30258973,3180.00,Revenue,Barchester Healthcare (Werrington Lodge),Residential Care
Peterborough City Council,People & Communities,Independent Sector Placements,Services,08/01/2020,30258976,1775.44,Revenue,Barchester Healthcare (Werrington Lodge),Residential Care
Peterborough City Council,People & Communities,Independent Sector Placements,Services,08/01/2020,30258979,2487.36,Revenue,Barchester Healthcare (Werrington Lodge),Residential Care
Peterborough City Council,People & Communities,Independent Sector Placements,Services,08/01/2020,30259047,1600.00,Revenue,Barchester Healthcare (Werrington Lodge),Respite Care
Peterborough City Council,People & Communities,Independent Sector Placements,Services,08/01/2020,30259050,1496.00,Revenue,Barchester Healthcare (Werrington Lodge),Residential Care
Peterborough City Council,People & Communities,Independent Sector Placements,Services,08/01/2020,30259051,1120.24,Revenue,Barchester Healthcare (Werrington Lodge),Residential Care
Peterborough City Council,People & Communities,Independent Sector Placements,Services,08/01/2020,30259052,1987.32,Revenue,Barchester Healthcare (Werrington Lodge),Residential Care
Peterborough City Council,People & Communities,Independent Sector Placements,Services,08/01/2020,30259053,1637.68,Revenue,Barchester Healthcare (Werrington Lodge),Residential Care
Peterborough City Council,People & Communities,Independent Sector Placements,Services,08/01/2020,30259054,1685.72,Revenue,Barchester Healthcare (Werrington Lodge),Residential Care
Peterborough City Council,People & Communities,Independent Sector Placements,Services,08/01/2020,30259055,1850.92,Revenue,Barchester Healthcare (Werrington Lodge),Residential Care
Peterborough City Council,People & Communities,Independent Sector Placements,Services,08/01/2020,30259056,1769.56,Revenue,Barchester Healthcare (Werrington Lodge),Residential Care
Peterborough City Council,People & Communities,Independent Sector Placements,Services,08/01/2020,30259057,2070.40,Revenue,Barchester Healthcare (Werrington Lodge),Residential Care
Peterborough City Council,People & Communities,Independent Sector Placements,Services,08/01/2020,30259058,1652.88,Revenue,Barchester Healthcare (Werrington Lodge),Residential Care
Peterborough City Council,People & Communities,Independent Sector Placements,Services,08/01/2020,30259059,1471.16,Revenue,Barchester Healthcare (Werrington Lodge),Residential Care
Peterborough City Council,People & Communities,Independent Sector Placements,Services,08/01/2020,30259060,1735.00,Revenue,Barchester Healthcare (Werrington Lodge),Residential Care
Peterborough City Council,Place & Economy,Westcombe Engineering,Services,08/01/2020,30257989,684.60,Revenue,Barron Clark Castings Ltd,Materials
Peterborough City Council,People & Communities,Commissioning,Services,08/01/2020,30259143,880.00,Revenue,BDP Social Care Ltd,Hired Services
Peterborough City Council,People & Communities,Housing,Services,08/01/2020,30258945,1020.00,Revenue,Brookdale Property Management,Financial Assistance
Peterborough City Council,People & Communities,Clare Lodge,Cleaning & Domestic Supplies,08/01/2020,30258405,729.53,Revenue,Bunzl UK Ltd t/a Industrial Supplies,Cleaning
Peterborough City Council,People & Communities,Child Health,Advertising,08/01/2020,30256049,500.00,Revenue,Cambridge Publishers Ltd,Recruitment Advertising
Peterborough City Council,People & Communities,Independent Sector Placements,Services,08/01/2020,30257088,1546.29,Revenue,Cambridgeshire County Council,Daycare
Peterborough City Council,People & Communities,Mental Health,Services,08/01/2020,30257756,67135.83,Revenue,Cambridgeshire County Council,Contract Services
Peterborough City Council,Place & Economy,Network and Traffic Management,Services,08/01/2020,30258809,653.00,Revenue,Cambridgeshire County Council,Course Fees
Peterborough City Council,People & Communities,Home Services Delivery Model,Customer and client receipts - Fees & Charges,08/01/2020,30258223,-1274.59,Revenue,Casbon Building Services,Grant Payment
Peterborough City Council,Corporate,Corporate,Non Revenue,08/01/2020,30258223,9771.83,Capital,Casbon Building Services,Grant Payment
Peterborough City Council,People & Communities,Home Services Delivery Model,Customer and client receipts - Fees & Charges,08/01/2020,30258226,-750.00,Revenue,Casbon Building Services,Home Care
Peterborough City Council,Corporate,Corporate,Non Revenue,08/01/2020,30258226,5750.00,Capital,Casbon Building Services,Grant Payment
Peterborough City Council,Governance,Elections,Rents,08/01/2020,30258585,500.00,Revenue,City Church Peterborough,Hire of Equipment
Peterborough City Council,People & Communities,Financing - Resources,Services,08/01/2020,30258364,182450.00,Revenue,City College Peterborough,Education Expenses
Peterborough City Council,People & Communities,Commissioning,Services,08/01/2020,30258438,588.00,Revenue,Crisp and Crane Training Limited,Hired Services
Peterborough City Council,People & Communities,Independent Sector Placements,Services,08/01/2020,30258634,13650.00,Revenue,CYGNET CARE SERVICES LTD,Residential Care
Peterborough City Council,Resources,Office Accomodation,Services,08/01/2020,30257844,1173.70,Revenue,Data Solutions 2016 Limited t/a Restore datashred,Waste Disposals
Peterborough City Council,Place & Economy,Network and Traffic Management,Members Allowances,08/01/2020,30260699,15600.00,Revenue,Dynniq UK Ltd,Computer Software
Peterborough City Council,People & Communities,Housing,Services,08/01/2020,30258419,12536.82,Revenue,Eastfield Guesthouse,Temporary Accommodation Costs
Peterborough City Council,People & Communities,Cultural Services,Energy Costs,08/01/2020,30259299,5305.54,Revenue,EDF Energy Networks Ltd,Electricity
Peterborough City Council,People & Communities,Cultural Services,Energy Costs,08/01/2020,30259299,4389.90,Revenue,EDF Energy Networks Ltd,Electricity
Peterborough City Council,People & Communities,Community Capacity,Energy Costs,08/01/2020,30259299,1131.79,Revenue,EDF Energy Networks Ltd,Electricity
Peterborough City Council,People & Communities,Community Capacity,Energy Costs,08/01/2020,30259299,1194.80,Revenue,EDF Energy Networks Ltd,Electricity
Peterborough City Council,People & Communities,Community Capacity,Energy Costs,08/01/2020,30259299,1339.70,Revenue,EDF Energy Networks Ltd,Electricity
Peterborough City Council,People & Communities,Access to Resources & Specialist Commissioning,Schools,08/01/2020,30259123,18676.66,Revenue,Exeter Royal Academy for Deaf Education,Boarding Out Fees
Peterborough City Council,Governance,Elections,Rents,08/01/2020,30258593,525.00,Revenue,Eye Community Association,Hire of Equipment
Peterborough City Council,People & Communities,Independent Sector Placements,Services,08/01/2020,30257092,1871.28,Revenue,GARDEN LODGE,Residential Care
Peterborough City Council,People & Communities,Independent Sector Placements,Services,08/01/2020,30257093,13197.14,Revenue,Glenholme Healthcare Limited,Residential Care
Peterborough City Council,People & Communities,Independent Sector Placements,Services,08/01/2020,30258822,-818.97,Revenue,Goldcare Homes t/a The Tudors Care Home,Residential Care
Peterborough City Council,People & Communities,Independent Sector Placements,Services,08/01/2020,30258902,1150.00,Revenue,Goldcare Homes t/a The Tudors Care Home,Respite Care
Peterborough City Council,People & Communities,Independent Sector Placements,Services,08/01/2020,8000158329,2554.50,Revenue,Hales Group Ltd,Home Care
Peterborough City Council,People & Communities,Independent Sector Placements,Services,08/01/2020,30258466,2139.24,Revenue,HC-One Beamish Limited - St Clares Court,Residential Care
Peterborough City Council,People & Communities,Independent Sector Placements,Services,08/01/2020,30258776,3175.00,Revenue,HC-One Oval Limited,Residential Care
Peterborough City Council,People & Communities,Independent Sector Placements,Services,08/01/2020,30258777,1542.60,Revenue,HC-One Oval Limited,Residential Care
Peterborough City Council,People & Communities,Independent Sector Placements,Services,08/01/2020,30258778,2559.36,Revenue,HC-One Oval Limited,Residential Care
Peterborough City Council,People & Communities,Independent Sector Placements,Services,08/01/2020,30258779,1542.60,Revenue,HC-One Oval Limited,Residential Care
Peterborough City Council,People & Communities,Independent Sector Placements,Services,08/01/2020,30258780,2559.36,Revenue,HC-One Oval Limited,Residential Care
Peterborough City Council,People & Communities,Independent Sector Placements,Services,08/01/2020,30258781,1542.60,Revenue,HC-One Oval Limited,Residential Care
Peterborough City Council,People & Communities,Independent Sector Placements,Services,08/01/2020,30258782,2575.00,Revenue,HC-One Oval Limited,Residential Care
Peterborough City Council,People & Communities,Independent Sector Placements,Services,08/01/2020,30258783,2559.36,Revenue,HC-One Oval Limited,Residential Care
Peterborough City Council,People & Communities,Independent Sector Placements,Services,08/01/2020,30258955,2150.60,Revenue,HEREWARD CARE SERVICES LIMITED,Residential Care
Peterborough City Council,People & Communities,Independent Sector Placements,Services,08/01/2020,30258957,2585.80,Revenue,HEREWARD CARE SERVICES LIMITED,Residential Care
Peterborough City Council,People & Communities,Block Contracts,Other Establishments,08/01/2020,30258959,60548.12,Revenue,HEREWARD CARE SERVICES LIMITED,Third Party Payments - Contract
Peterborough City Council,People & Communities,Independent Sector Placements,Services,08/01/2020,30258963,3425.92,Revenue,HEREWARD CARE SERVICES LIMITED,Residential Care
Peterborough City Council,People & Communities,Independent Sector Placements,Services,08/01/2020,30258964,2590.00,Revenue,HEREWARD CARE SERVICES LIMITED,Residential Care
Peterborough City Council,People & Communities,Independent Sector Placements,Services,08/01/2020,30258966,2666.64,Revenue,HEREWARD CARE SERVICES LIMITED,Residential Care
Peterborough City Council,People & Communities,Independent Sector Placements,Services,08/01/2020,30258967,2677.32,Revenue,HEREWARD CARE SERVICES LIMITED,Residential Care
Peterborough City Council,Governance,Elections,Rents,08/01/2020,30258594,1500.00,Revenue,House of Feasts,Hire of Equipment
Peterborough City Council,Corporate,Corporate,Non Revenue,08/01/2020,30259671,31038.35,Capital,Jeakins Weir Ltd,Building And Site Works
Peterborough City Council,Customer & Digital Services,Marketing & Communications,Services,08/01/2020,30259081,1127.00,Revenue,Jeffery Sin-Jon & Associates Limited,Printing
Peterborough City Council,Governance,Legal Services,Services,08/01/2020,30257596,800.60,Revenue,LMH Clinical Psychology Services,Jurors/Expert Witnesses
Peterborough City Council,People & Communities,Independent Sector Placements,Services,08/01/2020,30259451,706.80,Revenue,Longhurst Group Limited,Home Care
Peterborough City Council,People & Communities,Home Services Delivery Model,Customer and client receipts - Fees & Charges,08/01/2020,30258172,-542.40,Revenue,M J Greaves,Grant Payment
Peterborough City Council,Corporate,Corporate,Non Revenue,08/01/2020,30258172,4158.40,Capital,M J Greaves,Grant Payment
Peterborough City Council,People & Communities,Independent Sector Placements,Services,08/01/2020,30258503,5658.20,Revenue,Maison Care Ltd,Residential Care
Peterborough City Council,Place & Economy,Waste Management,Services,08/01/2020,30258327,15935.87,Revenue,Material Change Composting Ltd,Recycling
Peterborough City Council,People & Communities,Independent Sector Placements,Services,08/01/2020,30257597,1576.24,Revenue,Maxey House Res Home,Residential Care
Peterborough City Council,People & Communities,Independent Sector Placements,Services,08/01/2020,30257600,1679.96,Revenue,Maxey House Res Home,Residential Care
Peterborough City Council,People & Communities,Independent Sector Placements,Services,08/01/2020,30257601,904.68,Revenue,Maxey House Res Home,Residential Care
Peterborough City Council,People & Communities,Independent Sector Placements,Services,08/01/2020,30257602,693.94,Revenue,Maxey House Res Home,Residential Care
Peterborough City Council,People & Communities,Independent Sector Placements,Services,08/01/2020,30257603,1821.88,Revenue,Maxey House Res Home,Residential Care
Peterborough City Council,People & Communities,Independent Sector Placements,Services,08/01/2020,30257604,975.20,Revenue,Maxey House Res Home,Residential Care
Peterborough City Council,People & Communities,Independent Sector Placements,Services,08/01/2020,30257605,2000.00,Revenue,Maxey House Res Home,Residential Care
Peterborough City Council,People & Communities,Independent Sector Placements,Services,08/01/2020,30257606,2100.00,Revenue,Maxey House Res Home,Respite Care
Peterborough City Council,People & Communities,Independent Sector Placements,Services,08/01/2020,30257608,1530.60,Revenue,Maxey House Res Home,Residential Care
Peterborough City Council,People & Communities,Independent Sector Placements,Services,08/01/2020,30257609,1821.88,Revenue,Maxey House Res Home,Residential Care
Peterborough City Council,People & Communities,Independent Sector Placements,Services,08/01/2020,30257611,1030.12,Revenue,Maxey House Res Home,Residential Care
Peterborough City Council,People & Communities,Independent Sector Placements,Services,08/01/2020,30257613,1502.60,Revenue,Maxey House Res Home,Residential Care
Peterborough City Council,People & Communities,Independent Sector Placements,Services,08/01/2020,30257615,1410.24,Revenue,Maxey House Res Home,Residential Care
Peterborough City Council,People & Communities,Independent Sector Placements,Services,08/01/2020,30257617,888.08,Revenue,Maxey House Res Home,Residential Care
Peterborough City Council,People & Communities,Independent Sector Placements,Services,08/01/2020,30257619,1186.12,Revenue,Maxey House Res Home,Residential Care
Peterborough City Council,People & Communities,Independent Sector Placements,Services,08/01/2020,30257621,5000.00,Revenue,Maxey House Res Home,Residential Care
Peterborough City Council,People & Communities,Independent Sector Placements,Services,08/01/2020,30258687,1634.41,Revenue,MEARS GROUP,Home Care
Peterborough City Council,People & Communities,Independent Sector Placements,Services,08/01/2020,30257368,4924.60,Revenue,Mencap,Residential Care
Peterborough City Council,People & Communities,Independent Sector Placements,Services,08/01/2020,30257369,600.00,Revenue,Mencap,Home Care
Peterborough City Council,People & Communities,Independent Sector Placements,Services,08/01/2020,30257371,720.00,Revenue,Mencap,Home Care
Peterborough City Council,People & Communities,Independent Sector Placements,Services,08/01/2020,30257372,900.00,Revenue,Mencap,Home Care
Peterborough City Council,People & Communities,Independent Sector Placements,Services,08/01/2020,30257373,8469.72,Revenue,Mencap,Home Care
Peterborough City Council,People & Communities,Independent Sector Placements,Services,08/01/2020,30257374,2320.00,Revenue,Mencap,Home Care
Peterborough City Council,People & Communities,Independent Sector Placements,Services,08/01/2020,30257379,8020.28,Revenue,Mencap,Home Care
Peterborough City Council,People & Communities,Independent Sector Placements,Services,08/01/2020,30257380,600.00,Revenue,Mencap,Home Care
Peterborough City Council,People & Communities,Independent Sector Placements,Services,08/01/2020,30257381,900.00,Revenue,Mencap,Home Care
Peterborough City Council,People & Communities,Independent Sector Placements,Services,08/01/2020,30257382,2340.00,Revenue,Mencap,Home Care
Peterborough City Council,People & Communities,Independent Sector Placements,Services,08/01/2020,30257385,1170.00,Revenue,Mencap,Home Care
Peterborough City Council,People & Communities,Independent Sector Placements,Services,08/01/2020,30257387,8050.80,Revenue,Mencap,Home Care
Peterborough City Council,People & Communities,Independent Sector Placements,Services,08/01/2020,30257388,600.00,Revenue,Mencap,Home Care
Peterborough City Council,People & Communities,Independent Sector Placements,Services,08/01/2020,30257389,1560.00,Revenue,Mencap,Home Care
Peterborough City Council,People & Communities,Independent Sector Placements,Services,08/01/2020,30259005,4734.60,Revenue,Mencap,Residential Care
Peterborough City Council,People & Communities,Independent Sector Placements,Services,08/01/2020,30259006,4437.80,Revenue,Mencap,Residential Care
Peterborough City Council,People & Communities,Independent Sector Placements,Services,08/01/2020,30259221,1740.00,Revenue,Mencap,Home Care
Peterborough City Council,People & Communities,Independent Sector Placements,Services,08/01/2020,30259222,7082.60,Revenue,Mencap,Home Care
Peterborough City Council,People & Communities,Mental Health,Other Establishments,08/01/2020,30259524,5733.75,Revenue,Norfolk & Suffolk NHS Foundation Trust,Grant-Third Party
Peterborough City Council,People & Communities,Independent Sector Placements,Services,08/01/2020,30258682,4391.80,Revenue,OAKFIELD (EASTON MAUDIT) LTD,Residential Care
Peterborough City Council,Governance,Legal Services,Services,08/01/2020,30258731,1591.20,Revenue,Opus 2 International Limited,Jurors/Expert Witnesses
Peterborough City Council,Place & Economy,Transport & Infrastructure Commissioning,Agency Staff,08/01/2020,30259119,6276.00,Revenue,Outspoken Training LLP,External Temporary Staff
Peterborough City Council,Place & Economy,Building Control,Agency Staff,08/01/2020,30258767,2496.60,Revenue,Oyster Partnership Ltd,External Temporary Staff
Peterborough City Council,People & Communities,Cohesion,Public Transport,08/01/2020,30254835,990.00,Revenue,PARCA,Hired Transport
Peterborough City Council,People & Communities,Cohesion,Public Transport,08/01/2020,30254839,660.00,Revenue,PARCA,Hired Transport
Peterborough City Council,People & Communities,Independent Sector Placements,Services,08/01/2020,30258644,2017.08,Revenue,Park Vista Care Home,Respite Care
Peterborough City Council,People & Communities,Independent Sector Placements,Services,08/01/2020,30258853,1035.28,Revenue,Park Vista Care Home,Residential Care
Peterborough City Council,Corporate,Corporate,Non Revenue,08/01/2020,30258765,9900.00,Capital,Permanent Futures Ltd,Consultants Fees
Peterborough City Council,People & Communities,Special Educational Needs / Inclusion,Services,08/01/2020,30258774,1100.00,Revenue,Permanent Futures Ltd,Conferences
Peterborough City Council,People & Communities,Special Educational Needs / Inclusion,Services,08/01/2020,30259062,1100.00,Revenue,Permanent Futures Ltd,Conferences
Peterborough City Council,Corporate,Corporate,Non Revenue,08/01/2020,30259117,7550.00,Capital,Permanent Futures Ltd,Consultants Fees
Peterborough City Council,Corporate,Corporate,Non Revenue,08/01/2020,30259197,7830.00,Capital,Permanent Futures Ltd,Consultants Fees
Peterborough City Council,Corporate,Corporate,Non Revenue,08/01/2020,30257555,63855.65,Capital,Peterborough Limited,Building And Site Works
Peterborough City Council,Corporate,Corporate,Non Revenue,08/01/2020,30259027,17471.30,Capital,Peterborough Limited,Building And Site Works
Peterborough City Council,People & Communities,Independent Sector Placements,Services,08/01/2020,30258511,2780.00,Revenue,PHILIA LODGE REST HOME,Residential Care
Peterborough City Council,People & Communities,Independent Sector Placements,Services,08/01/2020,30258520,2780.00,Revenue,PHILIA LODGE REST HOME,Residential Care
Peterborough City Council,People & Communities,Independent Sector Placements,Services,08/01/2020,30258524,2024.72,Revenue,PHILIA LODGE REST HOME,Residential Care
Peterborough City Council,People & Communities,Independent Sector Placements,Services,08/01/2020,30258526,2780.00,Revenue,PHILIA LODGE REST HOME,Residential Care
Peterborough City Council,People & Communities,Independent Sector Placements,Services,08/01/2020,30258529,2143.28,Revenue,PHILIA LODGE REST HOME,Residential Care
Peterborough City Council,People & Communities,Independent Sector Placements,Services,08/01/2020,30258536,1778.20,Revenue,PHILIA LODGE REST HOME,Residential Care
Peterborough City Council,People & Communities,Independent Sector Placements,Services,08/01/2020,30258546,2780.00,Revenue,PHILIA LODGE REST HOME,Residential Care
Peterborough City Council,People & Communities,Independent Sector Placements,Services,08/01/2020,30258547,2780.00,Revenue,PHILIA LODGE REST HOME,Residential Care
Peterborough City Council,Governance,Elections,Rents,08/01/2020,30259010,2856.54,Revenue,Portakabin Ltd,Hire of Equipment
Peterborough City Council,Governance,Elections,Rents,08/01/2020,30259013,2907.00,Revenue,Portakabin Ltd,Hire of Equipment
Peterborough City Council,Governance,Elections,Rents,08/01/2020,30259014,2907.00,Revenue,Portakabin Ltd,Hire of Equipment
Peterborough City Council,People & Communities,Independent Sector Placements,Services,08/01/2020,30258861,4145.36,Revenue,PossAbilities CIC,Home Care
Peterborough City Council,People & Communities,Independent Sector Placements,Services,08/01/2020,30258862,4145.36,Revenue,PossAbilities CIC,Home Care
Peterborough City Council,Corporate,Corporate,Non Revenue,08/01/2020,30258455,2800.00,Capital,Quicksilva Limited,Consultants Fees
Peterborough City Council,People & Communities,Mental Capacity Act & DoLs,Services,08/01/2020,30258277,764.00,Revenue,Raj Medical Consultancy Limited,Materials
Peterborough City Council,Corporate,Corporate,Non Revenue,08/01/2020,30258404,5164.89,Capital,Rawheat Heating & Plumbing Eng.,Building And Site Works
Peterborough City Council,People & Communities,Regulatory Services,Services,08/01/2020,30255542,2625.00,Revenue,Redacted Personal Information,Legal Costs
Peterborough City Council,Place & Economy,Highway & Drainage Control,Direct Transport Costs,08/01/2020,30258418,38907.56,Revenue,Redacted Personal Information,Consultant Fees 
Peterborough City Council,Resources,Commercial Propety,Services,08/01/2020,30258990,1500.00,Revenue,House of Feasts,Third Party Payment
Peterborough City Council,Governance,Legal Services,Services,08/01/2020,30259202,1300.00,Revenue,LAVENDER HOUSE RESIDENTIAL HOME,Legal Costs
Peterborough City Council,People & Communities,Early Years & Quality Improvement,Services,08/01/2020,30259534,508.86,Revenue,Redacted Personal Information,Grant Payment
Peterborough City Council,People & Communities,Early Years & Quality Improvement,Services,08/01/2020,30259535,734.71,Revenue,Redacted Personal Information,Grant Payment
Peterborough City Council,People & Communities,Access to Resources & Specialist Commissioning,Schools,08/01/2020,8000158315,627.06,Revenue,Redacted Personal Information,Boarding Out Fees
Peterborough City Council,People & Communities,Access to Resources & Specialist Commissioning,Schools,08/01/2020,8000158315,627.06,Revenue,Redacted Personal Information,Boarding Out Fees
Peterborough City Council,People & Communities,Access to Resources & Specialist Commissioning,Schools,08/01/2020,8000158315,627.06,Revenue,Redacted Personal Information,Boarding Out Fees
Peterborough City Council,People & Communities,Access to Resources & Specialist Commissioning,Schools,08/01/2020,8000158315,584.08,Revenue,Redacted Personal Information,Boarding Out Fees
Peterborough City Council,People & Communities,Access to Resources & Specialist Commissioning,Schools,08/01/2020,8000158315,584.08,Revenue,Redacted Personal Information,Boarding Out Fees
Peterborough City Council,People & Communities,Access to Resources & Specialist Commissioning,Schools,08/01/2020,8000158315,584.08,Revenue,Redacted Personal Information,Boarding Out Fees
Peterborough City Council,People & Communities,Access to Resources & Specialist Commissioning,Schools,08/01/2020,8000158315,584.08,Revenue,Redacted Personal Information,Boarding Out Fees
Peterborough City Council,People & Communities,Access to Resources & Specialist Commissioning,Schools,08/01/2020,8000158315,605.57,Revenue,Redacted Personal Information,Boarding Out Fees
Peterborough City Council,People & Communities,Access to Resources & Specialist Commissioning,Schools,08/01/2020,8000158315,909.86,Revenue,Redacted Personal Information,Boarding Out Fees
Peterborough City Council,People & Communities,Access to Resources & Specialist Commissioning,Schools,08/01/2020,8000158315,584.08,Revenue,Redacted Personal Information,Boarding Out Fees
Peterborough City Council,People & Communities,Access to Resources & Specialist Commissioning,Schools,08/01/2020,8000158315,584.08,Revenue,Redacted Personal Information,Boarding Out Fees
Peterborough City Council,People & Communities,Access to Resources & Specialist Commissioning,Schools,08/01/2020,8000158315,584.08,Revenue,Redacted Personal Information,Boarding Out Fees
Peterborough City Council,People & Communities,Access to Resources & Specialist Commissioning,Schools,08/01/2020,8000158315,584.08,Revenue,Redacted Personal Information,Boarding Out Fees
Peterborough City Council,People & Communities,Access to Resources & Specialist Commissioning,Schools,08/01/2020,8000158315,545.88,Revenue,Redacted Personal Information,Boarding Out Fees
Peterborough City Council,People & Communities,Access to Resources & Specialist Commissioning,Schools,08/01/2020,8000158315,545.88,Revenue,Redacted Personal Information,Boarding Out Fees
Peterborough City Council,People & Communities,Access to Resources & Specialist Commissioning,Schools,08/01/2020,8000158315,844.48,Revenue,Redacted Personal Information,Boarding Out Fees
Peterborough City Council,People & Communities,Access to Resources & Specialist Commissioning,Schools,08/01/2020,8000158315,841.26,Revenue,Redacted Personal Information,Boarding Out Fees
Peterborough City Council,People & Communities,Access to Resources & Specialist Commissioning,Schools,08/01/2020,8000158315,841.26,Revenue,Redacted Personal Information,Boarding Out Fees
Peterborough City Council,People & Communities,Access to Resources & Specialist Commissioning,Schools,08/01/2020,8000158315,627.06,Revenue,Redacted Personal Information,Boarding Out Fees
Peterborough City Council,People & Communities,Access to Resources & Specialist Commissioning,Schools,08/01/2020,8000158315,584.08,Revenue,Redacted Personal Information,Boarding Out Fees
Peterborough City Council,People & Communities,Access to Resources & Specialist Commissioning,Schools,08/01/2020,8000158315,527.52,Revenue,Redacted Personal Information,Boarding Out Fees
Peterborough City Council,People & Communities,Access to Resources & Specialist Commissioning,Schools,08/01/2020,8000158315,527.52,Revenue,Redacted Personal Information,Boarding Out Fees
Peterborough City Council,People & Communities,Access to Resources & Specialist Commissioning,Schools,08/01/2020,8000158315,584.08,Revenue,Redacted Personal Information,Boarding Out Fees
Peterborough City Council,People & Communities,Access to Resources & Specialist Commissioning,Schools,08/01/2020,8000158315,527.52,Revenue,Redacted Personal Information,Boarding Out Fees
Peterborough City Council,People & Communities,Access to Resources & Specialist Commissioning,Schools,08/01/2020,8000158315,909.86,Revenue,Redacted Personal Information,Boarding Out Fees
Peterborough City Council,People & Communities,Access to Resources & Specialist Commissioning,Schools,08/01/2020,8000158315,909.86,Revenue,Redacted Personal Information,Boarding Out Fees
Peterborough City Council,People & Communities,Access to Resources & Specialist Commissioning,Schools,08/01/2020,8000158315,875.91,Revenue,Redacted Personal Information,Boarding Out Fees
Peterborough City Council,People & Communities,Access to Resources & Specialist Commissioning,Schools,08/01/2020,8000158315,627.06,Revenue,Redacted Personal Information,Boarding Out Fees
Peterborough City Council,People & Communities,Access to Resources & Specialist Commissioning,Schools,08/01/2020,8000158315,584.08,Revenue,Redacted Personal Information,Boarding Out Fees
Peterborough City Council,People & Communities,Access to Resources & Specialist Commissioning,Schools,08/01/2020,8000158315,584.08,Revenue,Redacted Personal Information,Boarding Out Fees
Peterborough City Council,People & Communities,Access to Resources & Specialist Commissioning,Schools,08/01/2020,8000158315,1880.00,Revenue,Redacted Personal Information,Boarding Out Fees
Peterborough City Council,People & Communities,Access to Resources & Specialist Commissioning,Schools,08/01/2020,8000158315,627.06,Revenue,Redacted Personal Information,Boarding Out Fees
Peterborough City Council,People & Communities,Access to Resources & Specialist Commissioning,Schools,08/01/2020,8000158315,613.62,Revenue,Redacted Personal Information,Boarding Out Fees
Peterborough City Council,People & Communities,Access to Resources & Specialist Commissioning,Schools,08/01/2020,8000158315,882.42,Revenue,Redacted Personal Information,Boarding Out Fees
Peterborough City Council,People & Communities,Access to Resources & Specialist Commissioning,Schools,08/01/2020,8000158315,535.60,Revenue,Redacted Personal Information,Boarding Out Fees
Peterborough City Council,People & Communities,Access to Resources & Specialist Commissioning,Schools,08/01/2020,8000158315,527.52,Revenue,Redacted Personal Information,Boarding Out Fees
Peterborough City Council,People & Communities,Access to Resources & Specialist Commissioning,Schools,08/01/2020,8000158315,1372.00,Revenue,Redacted Personal Information,Boarding Out Fees
Peterborough City Council,People & Communities,Access to Resources & Specialist Commissioning,Schools,08/01/2020,8000158315,841.26,Revenue,Redacted Personal Information,Boarding Out Fees
Peterborough City Council,People & Communities,Access to Resources & Specialist Commissioning,Schools,08/01/2020,8000158315,584.08,Revenue,Redacted Personal Information,Boarding Out Fees
Peterborough City Council,People & Communities,Access to Resources & Specialist Commissioning,Schools,08/01/2020,8000158315,584.08,Revenue,Redacted Personal Information,Boarding Out Fees
Peterborough City Council,People & Communities,Access to Resources & Specialist Commissioning,Schools,08/01/2020,8000158315,501.72,Revenue,Redacted Personal Information,Boarding Out Fees
Peterborough City Council,People & Communities,Access to Resources & Specialist Commissioning,Schools,08/01/2020,8000158315,584.08,Revenue,Redacted Personal Information,Boarding Out Fees
Peterborough City Council,People & Communities,Access to Resources & Specialist Commissioning,Schools,08/01/2020,8000158315,732.13,Revenue,Redacted Personal Information,Boarding Out Fees
Peterborough City Council,People & Communities,Access to Resources & Specialist Commissioning,Schools,08/01/2020,8000158315,556.64,Revenue,Redacted Personal Information,Boarding Out Fees
Peterborough City Council,People & Communities,Access to Resources & Specialist Commissioning,Schools,08/01/2020,8000158315,585.62,Revenue,Redacted Personal Information,Boarding Out Fees
Peterborough City Council,People & Communities,Access to Resources & Specialist Commissioning,Schools,08/01/2020,8000158315,584.08,Revenue,Redacted Personal Information,Boarding Out Fees
Peterborough City Council,People & Communities,Access to Resources & Specialist Commissioning,Schools,08/01/2020,8000158315,961.38,Revenue,Redacted Personal Information,Boarding Out Fees
Peterborough City Council,People & Communities,Access to Resources & Specialist Commissioning,Schools,08/01/2020,8000158315,527.52,Revenue,Redacted Personal Information,Boarding Out Fees
Peterborough City Council,People & Communities,Access to Resources & Specialist Commissioning,Schools,08/01/2020,8000158315,584.08,Revenue,Redacted Personal Information,Boarding Out Fees
Peterborough City Council,People & Communities,Access to Resources & Specialist Commissioning,Schools,08/01/2020,8000158315,649.11,Revenue,Redacted Personal Information,Boarding Out Fees
Peterborough City Council,People & Communities,Access to Resources & Specialist Commissioning,Schools,08/01/2020,8000158315,584.08,Revenue,Redacted Personal Information,Boarding Out Fees
Peterborough City Council,People & Communities,Access to Resources & Specialist Commissioning,Schools,08/01/2020,8000158315,646.16,Revenue,Redacted Personal Information,Boarding Out Fees
Peterborough City Council,People & Communities,Access to Resources & Specialist Commissioning,Schools,08/01/2020,8000158315,646.16,Revenue,Redacted Personal Information,Boarding Out Fees
Peterborough City Council,People & Communities,Access to Resources & Specialist Commissioning,Schools,08/01/2020,8000158315,527.52,Revenue,Redacted Personal Information,Boarding Out Fees
Peterborough City Council,People & Communities,Access to Resources & Specialist Commissioning,Schools,08/01/2020,8000158315,584.08,Revenue,Redacted Personal Information,Boarding Out Fees
Peterborough City Council,People & Communities,Access to Resources & Specialist Commissioning,Schools,08/01/2020,8000158315,527.52,Revenue,Redacted Personal Information,Boarding Out Fees
Peterborough City Council,People & Communities,Access to Resources & Specialist Commissioning,Schools,08/01/2020,8000158315,584.08,Revenue,Redacted Personal Information,Boarding Out Fees
Peterborough City Council,People & Communities,Access to Resources & Specialist Commissioning,Schools,08/01/2020,8000158315,841.26,Revenue,Redacted Personal Information,Boarding Out Fees
Peterborough City Council,People & Communities,Access to Resources & Specialist Commissioning,Schools,08/01/2020,8000158315,527.52,Revenue,Redacted Personal Information,Boarding Out Fees
Peterborough City Council,People & Communities,Access to Resources & Specialist Commissioning,Schools,08/01/2020,8000158315,527.52,Revenue,Redacted Personal Information,Boarding Out Fees
Peterborough City Council,People & Communities,Access to Resources & Specialist Commissioning,Schools,08/01/2020,8000158315,627.06,Revenue,Redacted Personal Information,Boarding Out Fees
Peterborough City Council,People & Communities,Access to Resources & Specialist Commissioning,Schools,08/01/2020,8000158315,627.06,Revenue,Redacted Personal Information,Boarding Out Fees
Peterborough City Council,People & Communities,Access to Resources & Specialist Commissioning,Schools,08/01/2020,8000158315,835.80,Revenue,Redacted Personal Information,Boarding Out Fees
Peterborough City Council,People & Communities,Access to Resources & Specialist Commissioning,Schools,08/01/2020,8000158315,835.80,Revenue,Redacted Personal Information,Boarding Out Fees
Peterborough City Council,People & Communities,Access to Resources & Specialist Commissioning,Schools,08/01/2020,8000158315,632.38,Revenue,Redacted Personal Information,Boarding Out Fees
Peterborough City Council,People & Communities,Access to Resources & Specialist Commissioning,Schools,08/01/2020,8000158315,527.52,Revenue,Redacted Personal Information,Boarding Out Fees
Peterborough City Council,People & Communities,Access to Resources & Specialist Commissioning,Schools,08/01/2020,8000158315,584.08,Revenue,Redacted Personal Information,Boarding Out Fees
Peterborough City Council,People & Communities,Access to Resources & Specialist Commissioning,Schools,08/01/2020,8000158315,584.08,Revenue,Redacted Personal Information,Boarding Out Fees
Peterborough City Council,People & Communities,Access to Resources & Specialist Commissioning,Schools,08/01/2020,8000158315,584.08,Revenue,Redacted Personal Information,Boarding Out Fees
Peterborough City Council,People & Communities,Access to Resources & Specialist Commissioning,Schools,08/01/2020,8000158315,584.08,Revenue,Redacted Personal Information,Boarding Out Fees
Peterborough City Council,People & Communities,Access to Resources & Specialist Commissioning,Schools,08/01/2020,8000158315,831.67,Revenue,Redacted Personal Information,Boarding Out Fees
Peterborough City Council,People & Communities,Access to Resources & Specialist Commissioning,Schools,08/01/2020,8000158315,627.06,Revenue,Redacted Personal Information,Boarding Out Fees
Peterborough City Council,People & Communities,Access to Resources & Specialist Commissioning,Schools,08/01/2020,8000158315,584.08,Revenue,Redacted Personal Information,Boarding Out Fees
Peterborough City Council,People & Communities,Access to Resources & Specialist Commissioning,Schools,08/01/2020,8000158315,584.08,Revenue,Redacted Personal Information,Boarding Out Fees
Peterborough City Council,People & Communities,Access to Resources & Specialist Commissioning,Schools,08/01/2020,8000158315,726.88,Revenue,Redacted Personal Information,Boarding Out Fees
Peterborough City Council,People & Communities,Access to Resources & Specialist Commissioning,Schools,08/01/2020,8000158315,726.88,Revenue,Redacted Personal Information,Boarding Out Fees
Peterborough City Council,People & Communities,Access to Resources & Specialist Commissioning,Schools,08/01/2020,8000158315,792.96,Revenue,Redacted Personal Information,Boarding Out Fees
Peterborough City Council,People & Communities,Access to Resources & Specialist Commissioning,Schools,08/01/2020,8000158315,623.04,Revenue,Redacted Personal Information,Boarding Out Fees
Peterborough City Council,People & Communities,Access to Resources & Specialist Commissioning,Schools,08/01/2020,8000158315,851.48,Revenue,Redacted Personal Information,Boarding Out Fees
Peterborough City Council,People & Communities,Access to Resources & Specialist Commissioning,Schools,08/01/2020,8000158315,844.90,Revenue,Redacted Personal Information,Boarding Out Fees
Peterborough City Council,People & Communities,Access to Resources & Specialist Commissioning,Schools,08/01/2020,8000158315,844.06,Revenue,Redacted Personal Information,Boarding Out Fees
Peterborough City Council,People & Communities,Access to Resources & Specialist Commissioning,Schools,08/01/2020,8000158315,844.06,Revenue,Redacted Personal Information,Boarding Out Fees
Peterborough City Council,People & Communities,Access to Resources & Specialist Commissioning,Schools,08/01/2020,8000158315,844.06,Revenue,Redacted Personal Information,Boarding Out Fees
Peterborough City Council,People & Communities,Access to Resources & Specialist Commissioning,Schools,08/01/2020,8000158315,909.86,Revenue,Redacted Personal Information,Boarding Out Fees
Peterborough City Council,People & Communities,Access to Resources & Specialist Commissioning,Schools,08/01/2020,8000158315,841.26,Revenue,Redacted Personal Information,Boarding Out Fees
Peterborough City Council,People & Communities,Access to Resources & Specialist Commissioning,Schools,08/01/2020,8000158315,584.08,Revenue,Redacted Personal Information,Boarding Out Fees
Peterborough City Council,People & Communities,Access to Resources & Specialist Commissioning,Schools,08/01/2020,8000158315,503.44,Revenue,Redacted Personal Information,Boarding Out Fees
Peterborough City Council,People & Communities,Access to Resources & Specialist Commissioning,Schools,08/01/2020,8000158315,527.52,Revenue,Redacted Personal Information,Boarding Out Fees
Peterborough City Council,People & Communities,Access to Resources & Specialist Commissioning,Schools,08/01/2020,8000158315,527.52,Revenue,Redacted Personal Information,Boarding Out Fees
Peterborough City Council,People & Communities,Access to Resources & Specialist Commissioning,Schools,08/01/2020,8000158315,584.08,Revenue,Redacted Personal Information,Boarding Out Fees
Peterborough City Council,People & Communities,Access to Resources & Specialist Commissioning,Schools,08/01/2020,8000158315,822.36,Revenue,Redacted Personal Information,Boarding Out Fees
Peterborough City Council,People & Communities,Access to Resources & Specialist Commissioning,Schools,08/01/2020,8000158315,822.36,Revenue,Redacted Personal Information,Boarding Out Fees
Peterborough City Council,People & Communities,Access to Resources & Specialist Commissioning,Schools,08/01/2020,8000158315,801.29,Revenue,Redacted Personal Information,Boarding Out Fees
Peterborough City Council,People & Communities,Access to Resources & Specialist Commissioning,Schools,08/01/2020,8000158315,584.08,Revenue,Redacted Personal Information,Boarding Out Fees
Peterborough City Council,People & Communities,Access to Resources & Specialist Commissioning,Schools,08/01/2020,8000158315,527.52,Revenue,Redacted Personal Information,Boarding Out Fees
Peterborough City Council,People & Communities,Access to Resources & Specialist Commissioning,Schools,08/01/2020,8000158315,649.11,Revenue,Redacted Personal Information,Boarding Out Fees
Peterborough City Council,People & Communities,Access to Resources & Specialist Commissioning,Schools,08/01/2020,8000158315,854.28,Revenue,Redacted Personal Information,Boarding Out Fees
Peterborough City Council,People & Communities,Access to Resources & Specialist Commissioning,Schools,08/01/2020,8000158315,970.06,Revenue,Redacted Personal Information,Boarding Out Fees
Peterborough City Council,People & Communities,Access to Resources & Specialist Commissioning,Schools,08/01/2020,8000158315,613.83,Revenue,Redacted Personal Information,Boarding Out Fees
Peterborough City Council,People & Communities,Access to Resources & Specialist Commissioning,Schools,08/01/2020,8000158315,1029.98,Revenue,Redacted Personal Information,Boarding Out Fees
Peterborough City Council,People & Communities,Access to Resources & Specialist Commissioning,Schools,08/01/2020,8000158315,841.26,Revenue,Redacted Personal Information,Boarding Out Fees
Peterborough City Council,People & Communities,Access to Resources & Specialist Commissioning,Schools,08/01/2020,8000158315,599.97,Revenue,Redacted Personal Information,Boarding Out Fees
Peterborough City Council,People & Communities,Access to Resources & Specialist Commissioning,Schools,08/01/2020,8000158315,1054.50,Revenue,Redacted Personal Information,Boarding Out Fees
Peterborough City Council,People & Communities,Access to Resources & Specialist Commissioning,Schools,08/01/2020,8000158315,530.88,Revenue,Redacted Personal Information,Boarding Out Fees
Peterborough City Council,People & Communities,Access to Resources & Specialist Commissioning,Schools,08/01/2020,8000158315,806.12,Revenue,Redacted Personal Information,Boarding Out Fees
Peterborough City Council,People & Communities,Access to Resources & Specialist Commissioning,Schools,08/01/2020,8000158315,806.12,Revenue,Redacted Personal Information,Boarding Out Fees
Peterborough City Council,People & Communities,Access to Resources & Specialist Commissioning,Schools,08/01/2020,8000158315,1400.00,Revenue,Redacted Personal Information,Boarding Out Fees
Peterborough City Council,People & Communities,Access to Resources & Specialist Commissioning,Schools,08/01/2020,8000158315,800.00,Revenue,Redacted Personal Information,Boarding Out Fees
Peterborough City Council,People & Communities,Access to Resources & Specialist Commissioning,Schools,08/01/2020,8000158315,800.00,Revenue,Redacted Personal Information,Boarding Out Fees
Peterborough City Council,People & Communities,Access to Resources & Specialist Commissioning,Schools,08/01/2020,8000158315,800.00,Revenue,Redacted Personal Information,Boarding Out Fees
Peterborough City Council,People & Communities,Access to Resources & Specialist Commissioning,Schools,08/01/2020,8000158315,981.68,Revenue,Redacted Personal Information,Boarding Out Fees
Peterborough City Council,People & Communities,Access to Resources & Specialist Commissioning,Schools,08/01/2020,8000158315,981.68,Revenue,Redacted Personal Information,Boarding Out Fees
Peterborough City Council,People & Communities,Access to Resources & Specialist Commissioning,Schools,08/01/2020,8000158315,981.68,Revenue,Redacted Personal Information,Boarding Out Fees
Peterborough City Council,Place & Economy,Highway & Drainage Control,Agency Staff,08/01/2020,30257917,1102.20,Revenue,Reed Specialist Recruitment Limited,External Temporary Staff
Peterborough City Council,People & Communities,Commissioning Team,Agency Staff,08/01/2020,30258486,2243.60,Revenue,Reed Specialist Recruitment Limited,External Temporary Staff
Peterborough City Council,People & Communities,Early Help ASC/CSC,Agency Staff,08/01/2020,30258488,591.62,Revenue,Reed Specialist Recruitment Limited,External Temporary Staff
Peterborough City Council,People & Communities,Early Help ASC/CSC,Agency Staff,08/01/2020,30258500,575.26,Revenue,Reed Specialist Recruitment Limited,External Temporary Staff
Peterborough City Council,Corporate,Corporate,Non Revenue,08/01/2020,30258544,2268.60,Capital,Reed Specialist Recruitment Limited,Consultants Fees
Peterborough City Council,Place & Economy,Highway & Drainage Control,Agency Staff,08/01/2020,30259210,1285.91,Revenue,Reed Specialist Recruitment Limited,External Temporary Staff
Peterborough City Council,Place & Economy,Highway & Drainage Control,Agency Staff,08/01/2020,30259251,935.20,Revenue,Reed Specialist Recruitment Limited,External Temporary Staff
Peterborough City Council,Governance,Legal Services,Agency Staff,08/01/2020,30259252,864.01,Revenue,Reed Specialist Recruitment Limited,External Temporary Staff
Peterborough City Council,Place & Economy,Highway & Drainage Control,Agency Staff,08/01/2020,30259255,1002.00,Revenue,Reed Specialist Recruitment Limited,External Temporary Staff
Peterborough City Council,Resources,PSSP Retained Services,Services,08/01/2020,30258409,1412.76,Revenue,Royal Mail,Postage
Peterborough City Council,People & Communities,Independent Sector Placements,Services,08/01/2020,30258163,2438.60,Revenue,Sanctuary Care Limited,Residential Care
Peterborough City Council,People & Communities,Therapy/Reablement/Community Equipment,Agency Staff,08/01/2020,30250605,4378.95,Revenue,Sanctuary Personnel Ltd,External Temporary Staff
Peterborough City Council,People & Communities,Therapy/Reablement/Community Equipment,Agency Staff,08/01/2020,30259662,5661.00,Revenue,Sanctuary Personnel Ltd,External Temporary Staff
Peterborough City Council,People & Communities,Special Educational Needs / Inclusion,Services,08/01/2020,30258703,20000.00,Revenue,Scope,Hired Services
Peterborough City Council,People & Communities,Day opportunities - Older People,Agency Staff,08/01/2020,30258288,2677.40,Revenue,Service Care Solutions Ltd,External Temporary Staff
Peterborough City Council,People & Communities,Children's Social Care,Agency Staff,08/01/2020,30258292,2081.25,Revenue,Service Care Solutions Ltd,External Temporary Staff
Peterborough City Council,People & Communities,Finance,Agency Staff,08/01/2020,30258296,3940.50,Revenue,Service Care Solutions Ltd,External Temporary Staff
Peterborough City Council,Corporate,Corporate,Non Revenue,08/01/2020,30257819,937.50,Capital,Sibcas Ltd,Building And Site Works
Peterborough City Council,People & Communities,Housing,Services,08/01/2020,30259376,3220.00,Revenue,Singh and Sons Property Management Ltd,Temporary Accommodation Costs
Peterborough City Council,People & Communities,Housing,Services,08/01/2020,30259377,1890.00,Revenue,Singh and Sons Property Management Ltd,Temporary Accommodation Costs
Peterborough City Council,People & Communities,Housing,Services,08/01/2020,30259378,3150.00,Revenue,Singh and Sons Property Management Ltd,Temporary Accommodation Costs
Peterborough City Council,People & Communities,Housing,Services,08/01/2020,30259379,2660.00,Revenue,Singh and Sons Property Management Ltd,Temporary Accommodation Costs
Peterborough City Council,People & Communities,Housing,Services,08/01/2020,30259380,3220.00,Revenue,Singh and Sons Property Management Ltd,Temporary Accommodation Costs
Peterborough City Council,People & Communities,Home Services Delivery Model,Customer and client receipts - Fees & Charges,08/01/2020,30258017,-1826.66,Revenue,Sovereign Property Services Ltd,Grant Payment
Peterborough City Council,People & Communities,Home Services Delivery Model,Customer and client receipts - Fees & Charges,08/01/2020,30258017,-675.00,Revenue,Sovereign Property Services Ltd,Grant Payment
Peterborough City Council,People & Communities,Home Services Delivery Model,Customer and client receipts - Fees & Charges,08/01/2020,30258017,-35.60,Revenue,Sovereign Property Services Ltd,Grant Payment
Peterborough City Council,Corporate,Corporate,Non Revenue,08/01/2020,30258017,17150.50,Capital,Sovereign Property Services Ltd,Grant Payment
Peterborough City Council,Corporate,Corporate,Non Revenue,08/01/2020,30258217,2950.00,Capital,Spotless {Cleaning Services},Grant Payment
Peterborough City Council,People & Communities,Independent Sector Placements,Services,08/01/2020,30258482,2030.60,Revenue,STAR RESIDENTIAL HOME LTD,Residential Care
Peterborough City Council,People & Communities,Independent Sector Placements,Services,08/01/2020,30258491,2600.80,Revenue,STAR RESIDENTIAL HOME LTD,Residential Care
Peterborough City Council,People & Communities,Independent Sector Placements,Services,08/01/2020,30258495,2034.40,Revenue,STAR RESIDENTIAL HOME LTD,Residential Care
Peterborough City Council,People & Communities,Independent Sector Placements,Services,08/01/2020,30258504,2591.36,Revenue,STAR RESIDENTIAL HOME LTD,Residential Care
Peterborough City Council,People & Communities,Independent Sector Placements,Services,08/01/2020,30258506,1490.24,Revenue,STAR RESIDENTIAL HOME LTD,Residential Care
Peterborough City Council,People & Communities,Independent Sector Placements,Services,08/01/2020,30258508,1985.56,Revenue,STAR RESIDENTIAL HOME LTD,Residential Care
Peterborough City Council,People & Communities,Independent Sector Placements,Services,08/01/2020,30258693,3233.44,Revenue,STAR RESIDENTIAL HOME LTD,Residential Care
Peterborough City Council,People & Communities,Independent Sector Placements,Services,08/01/2020,30258694,1543.64,Revenue,STAR RESIDENTIAL HOME LTD,Residential Care
Peterborough City Council,People & Communities,Independent Sector Placements,Services,08/01/2020,30258695,2030.60,Revenue,STAR RESIDENTIAL HOME LTD,Residential Care
Peterborough City Council,People & Communities,Independent Sector Placements,Services,08/01/2020,30258696,2035.40,Revenue,STAR RESIDENTIAL HOME LTD,Residential Care
Peterborough City Council,People & Communities,Independent Sector Placements,Services,08/01/2020,30258698,1892.68,Revenue,STAR RESIDENTIAL HOME LTD,Residential Care
Peterborough City Council,People & Communities,Independent Sector Placements,Services,08/01/2020,30258700,2186.60,Revenue,STAR RESIDENTIAL HOME LTD,Residential Care
Peterborough City Council,People & Communities,Independent Sector Placements,Services,08/01/2020,30258702,1930.40,Revenue,STAR RESIDENTIAL HOME LTD,Residential Care
Peterborough City Council,People & Communities,Housing,Services,08/01/2020,30259205,41864.00,Revenue,Stef & Philips Ltd,Temporary Accommodation Costs
Peterborough City Council,People & Communities,Service Director Education,Severance Payments,08/01/2020,30258942,28448.86,Revenue,Teachers Pensions,Redundancy Costs
Peterborough City Council,Governance,Elections,Rents,08/01/2020,30258580,750.00,Revenue,The Golden Pheasant,Hire of Equipment
Peterborough City Council,Corporate,Corporate,Non Revenue,08/01/2020,30259272,274.84,Balance Sheet,The Prudential Assurance Company Ltd,Pensions
Peterborough City Council,Corporate,Corporate,Non Revenue,08/01/2020,30259272,265.00,Balance Sheet,The Prudential Assurance Company Ltd,Pensions
Peterborough City Council,Corporate,Corporate,Non Revenue,08/01/2020,30259272,250.00,Balance Sheet,The Prudential Assurance Company Ltd,Pensions
Peterborough City Council,Corporate,Corporate,Non Revenue,08/01/2020,30259272,2.47,Balance Sheet,The Prudential Assurance Company Ltd,Pensions
Peterborough City Council,Corporate,Corporate,Non Revenue,08/01/2020,30259272,208.52,Balance Sheet,The Prudential Assurance Company Ltd,Pensions
Peterborough City Council,Corporate,Corporate,Non Revenue,08/01/2020,30259272,2.69,Balance Sheet,The Prudential Assurance Company Ltd,Pensions
Peterborough City Council,Corporate,Corporate,Non Revenue,08/01/2020,30259272,116.91,Balance Sheet,The Prudential Assurance Company Ltd,Pensions
Peterborough City Council,Corporate,Corporate,Non Revenue,08/01/2020,30259272,14.62,Balance Sheet,The Prudential Assurance Company Ltd,Pensions
Peterborough City Council,Corporate,Corporate,Non Revenue,08/01/2020,30259272,78.63,Balance Sheet,The Prudential Assurance Company Ltd,Pensions
Peterborough City Council,Corporate,Corporate,Non Revenue,08/01/2020,30259277,5435.55,Balance Sheet,The Prudential Assurance Company Ltd,Pensions
Peterborough City Council,Place & Economy,Network and Traffic Management,Services,08/01/2020,30258119,1191.30,Revenue,TMP (UK) LTD,Advertising
Peterborough City Council,Governance,Legal Services,Agency Staff,08/01/2020,30258968,1887.00,Revenue,Venn Group Ltd,External Temporary Staff
Peterborough City Council,Governance,Legal Services,Agency Staff,08/01/2020,30258971,2035.00,Revenue,Venn Group Ltd,External Temporary Staff
Peterborough City Council,Governance,Legal Services,Agency Staff,08/01/2020,30258981,2062.50,Revenue,Venn Group Ltd,External Temporary Staff
Peterborough City Council,People & Communities,Child Health,Services,08/01/2020,30256580,6224.50,Revenue,Vivacity Culture and Leisure,Purchased Social Care Services
Peterborough City Council,People & Communities,Child Health,Services,08/01/2020,30256581,6224.50,Revenue,Vivacity Culture and Leisure,Purchased Social Care Services
Peterborough City Council,Public Health,PH Commissioning,Other Establishments,08/01/2020,30258260,2647.50,Revenue,Westwood Clinic,Third Party Payments - Contract
Peterborough City Council,Public Health,PH Commissioning,Other Establishments,08/01/2020,30258295,736.00,Revenue,Westwood Clinic,Third Party Payments - Contract
Peterborough City Council,Resources,PSSP Retained Services,Services,08/01/2020,30259237,2313.74,Revenue,Whistl UK Ltd,Postage
Peterborough City Council,People & Communities,Clare Lodge,Agency Staff,08/01/2020,30258759,872.00,Revenue,Wrixon Care Services,External Temporary Staff
Peterborough City Council,People & Communities,Independent Sector Placements,Services,10/01/2020,30259211,5354.44,Revenue,Accomplish Group Limited (Orchard Hill),Residential Care
Peterborough City Council,People & Communities,Early Years & Quality Improvement,Services,10/01/2020,30260127,860.85,Revenue,Acorn Academy Day Nursery Ltd,Grant Payment
Peterborough City Council,People & Communities,Commissioning,Services,10/01/2020,30259667,1559.10,Revenue,"Advanced Child Safeguarding Services Ltd, t/a Risk Solutions",Hired Services
Peterborough City Council,People & Communities,Cohesion,Other Establishments,10/01/2020,30258420,7200.00,Revenue,Alderman Jacobs School,Grant-Third Party
Peterborough City Council,People & Communities,Commissioning,Services,10/01/2020,30259198,689.00,Revenue,Alere Toxicology PLC,Hired Services
Peterborough City Council,People & Communities,PFI,Water Services,10/01/2020,30259654,2849.12,Revenue,Anglian Water Business National,Water
Peterborough City Council,People & Communities,PFI,Water Services,10/01/2020,30259654,1312.38,Revenue,Anglian Water Business National,Water
Peterborough City Council,People & Communities,Cultural Services,Water Services,10/01/2020,30259882,4045.08,Revenue,Anglian Water Business National,Water
Peterborough City Council,People & Communities,PFI,Water Services,10/01/2020,30259882,5261.78,Revenue,Anglian Water Business National,Water
Peterborough City Council,People & Communities,Early Years & Quality Improvement,Services,10/01/2020,30259448,33844.14,Revenue,Apricot Childcare,Grant Payment
Peterborough City Council,People & Communities,Child Health,Repair & Maintenance of Buildings,10/01/2020,30259676,950.00,Revenue,ArjoHuntleigh UK Ltd,Maintenance
Peterborough City Council,People & Communities,Independent Sector Placements,Services,10/01/2020,30259413,1822.32,Revenue,Ashmere,Residential Care
Peterborough City Council,People & Communities,Independent Sector Placements,Services,10/01/2020,30259465,4855.66,Revenue,Askham Village Community Ltd,Respite Care
Peterborough City Council,People & Communities,Independent Sector Placements,Services,10/01/2020,30259501,4699.03,Revenue,Askham Village Community Ltd,Respite Care
Peterborough City Council,People & Communities,Independent Sector Placements,Services,10/01/2020,30259570,3445.95,Revenue,Askham Village Community Ltd,Respite Care
Peterborough City Council,People & Communities,Access to Resources & Specialist Commissioning,Schools,10/01/2020,30255288,24624.69,Revenue,Aspire Scotland Ltd,Boarding Out Fees
Peterborough City Council,People & Communities,Access to Resources & Specialist Commissioning,Schools,10/01/2020,30258970,25445.51,Revenue,Aspire Scotland Ltd,Boarding Out Fees
Peterborough City Council,People & Communities,Independent Sector Placements,Services,10/01/2020,30259516,2681.37,Revenue,Avery House (Peterborough) t/a Brighterkind,Residential Care
Peterborough City Council,People & Communities,Independent Sector Placements,Services,10/01/2020,30259517,3497.53,Revenue,Avery House (Peterborough) t/a Brighterkind,Respite Care
Peterborough City Council,People & Communities,Independent Sector Placements,Services,10/01/2020,30259541,2596.56,Revenue,Avery House (Peterborough) t/a Brighterkind,Respite Care
Peterborough City Council,People & Communities,Independent Sector Placements,Services,10/01/2020,30259722,6742.86,Revenue,Avery House (Peterborough) t/a Brighterkind,Residential Care
Peterborough City Council,People & Communities,Independent Sector Placements,Services,10/01/2020,30259723,-1199.81,Revenue,Avery House (Peterborough) t/a Brighterkind,Residential Care
Peterborough City Council,People & Communities,Independent Sector Placements,Services,10/01/2020,30259912,1449.00,Revenue,Avery House (Peterborough) t/a Brighterkind,Residential Care
Peterborough City Council,Corporate,Corporate,Non Revenue,10/01/2020,30259196,91817.94,Capital,B & H Services Group Ltd,Building And Site Works
Peterborough City Council,Place & Economy,Transport & Infrastructure Commissioning,Energy Costs,10/01/2020,30259835,520.36,Revenue,British Gas Business,Electricity
Peterborough City Council,Resources,Commercial Propety,Energy Costs,10/01/2020,30259868,345.51,Revenue,British Gas Business,Electricity
Peterborough City Council,Resources,Commercial Propety,Energy Costs,10/01/2020,30259868,186.19,Revenue,British Gas Business,Electricity
Peterborough City Council,Resources,Commercial Propety,Energy Costs,10/01/2020,30259868,195.51,Revenue,British Gas Business,Electricity
Peterborough City Council,People & Communities,Parking Services,Energy Costs,10/01/2020,30259868,19.86,Revenue,British Gas Business,Electricity
Peterborough City Council,People & Communities,Access to Resources & Specialist Commissioning,Schools,10/01/2020,30260161,3941.34,Revenue,Byrne House Ltd,Boarding Out Fees
Peterborough City Council,People & Communities,Commissioning,Services,10/01/2020,30251046,1117.50,Revenue,CAPITA Translation and Interpreting,Interpretation Expenses
Peterborough City Council,People & Communities,Commissioning,Services,10/01/2020,30251048,889.62,Revenue,CAPITA Translation and Interpreting,Interpretation Expenses
Peterborough City Council,People & Communities,Commissioning,Services,10/01/2020,30251052,617.76,Revenue,CAPITA Translation and Interpreting,Interpretation Expenses
Peterborough City Council,People & Communities,Commissioning,Services,10/01/2020,30251073,770.04,Revenue,CAPITA Translation and Interpreting,Interpretation Expenses
Peterborough City Council,People & Communities,Commissioning,Services,10/01/2020,30255698,509.12,Revenue,CAPITA Translation and Interpreting,Interpretation Expenses
Peterborough City Council,Governance,Elections,Services,10/01/2020,30259917,2840.90,Revenue,CFH Docmail Limited,Postage
Peterborough City Council,Governance,Elections,Services,10/01/2020,30259919,1801.76,Revenue,CFH Docmail Limited,Postage
Peterborough City Council,People & Communities,Children's Social Care,Services,10/01/2020,30255035,3.50,Revenue,Children & Families Looked After Children (Imprest),Financial Assistance
Peterborough City Council,People & Communities,Children's Social Care,Services,10/01/2020,30255035,23.00,Revenue,Children & Families Looked After Children (Imprest),Financial Assistance
Peterborough City Council,People & Communities,Access to Resources & Specialist Commissioning,Services,10/01/2020,30255035,175.80,Revenue,Children & Families Looked After Children (Imprest),Financial Assistance
Peterborough City Council,People & Communities,Children's Social Care,Services,10/01/2020,30255035,12.00,Revenue,Children & Families Looked After Children (Imprest),Financial Assistance
Peterborough City Council,People & Communities,Children's Social Care,Services,10/01/2020,30255035,85.55,Revenue,Children & Families Looked After Children (Imprest),Financial Assistance
Peterborough City Council,People & Communities,Children's Social Care,Services,10/01/2020,30255035,50.00,Revenue,Children & Families Looked After Children (Imprest),Financial Assistance
Peterborough City Council,People & Communities,Children's Social Care,Services,10/01/2020,30255035,16.45,Revenue,Children & Families Looked After Children (Imprest),Financial Assistance
Peterborough City Council,People & Communities,Children's Social Care,Services,10/01/2020,30255035,11.97,Revenue,Children & Families Looked After Children (Imprest),Financial Assistance
Peterborough City Council,People & Communities,Children's Social Care,Services,10/01/2020,30255035,30.00,Revenue,Children & Families Looked After Children (Imprest),Financial Assistance
Peterborough City Council,People & Communities,Access to Resources & Specialist Commissioning,Services,10/01/2020,30255035,1380.15,Revenue,Children & Families Looked After Children (Imprest),Financial Assistance
Peterborough City Council,People & Communities,Children's Social Care,Services,10/01/2020,30255035,65.00,Revenue,Children & Families Looked After Children (Imprest),Financial Assistance
Peterborough City Council,People & Communities,Children's Social Care,Services,10/01/2020,30255035,40.07,Revenue,Children & Families Looked After Children (Imprest),Financial Assistance
Peterborough City Council,People & Communities,Children's Social Care,Services,10/01/2020,30255035,15.00,Revenue,Children & Families Looked After Children (Imprest),Financial Assistance
Peterborough City Council,People & Communities,Children's Social Care,Services,10/01/2020,30255035,226.40,Revenue,Children & Families Looked After Children (Imprest),Financial Assistance
Peterborough City Council,People & Communities,Special Educational Needs / Inclusion,Services,10/01/2020,30258818,570.97,Revenue,Children's Therapy Solutions Ltd,Occupational Health
Peterborough City Council,People & Communities,Child Health,Repair & Maintenance of Buildings,10/01/2020,30259675,1295.00,Revenue,Chris Groome Decorating Ltd,Maintenance
Peterborough City Council,People & Communities,Independent Sector Placements,Services,10/01/2020,30258072,3762.00,Revenue,Community Care Solutions Ltd,Residential Care
Peterborough City Council,People & Communities,Independent Sector Placements,Services,10/01/2020,30258073,5600.00,Revenue,Community Care Solutions Ltd,Residential Care
Peterborough City Council,People & Communities,Independent Sector Placements,Services,10/01/2020,30258074,3762.00,Revenue,Community Care Solutions Ltd,Residential Care
Peterborough City Council,People & Communities,Independent Sector Placements,Services,10/01/2020,30258075,3762.00,Revenue,Community Care Solutions Ltd,Residential Care
Peterborough City Council,People & Communities,Independent Sector Placements,Services,10/01/2020,30258076,8049.72,Revenue,Community Care Solutions Ltd,Residential Care
Peterborough City Council,People & Communities,Access to Resources & Specialist Commissioning,Services,10/01/2020,30254462,846.95,Revenue,Cross Keys Homes,Purchased Social Care Services
Peterborough City Council,People & Communities,Housing,Services,10/01/2020,30259792,1199.30,Revenue,Cross Keys Homes,Financial Assistance
Peterborough City Council,People & Communities,Housing,Services,10/01/2020,30258768,8452.37,Revenue,DA Rosalia Hotel,Temporary Accommodation Costs
Peterborough City Council,People & Communities,Independent Sector Placements,Services,10/01/2020,30257949,948.48,Revenue,Deafblind Uk Trading Ltd,Home Care
Peterborough City Council,People & Communities,Independent Sector Placements,Services,10/01/2020,30257951,2410.72,Revenue,Deafblind Uk Trading Ltd,Home Care
Peterborough City Council,People & Communities,Independent Sector Placements,Services,10/01/2020,30257954,2015.52,Revenue,Deafblind Uk Trading Ltd,Home Care
Peterborough City Council,People & Communities,Independent Sector Placements,Services,10/01/2020,30257955,2786.16,Revenue,Deafblind Uk Trading Ltd,Home Care
Peterborough City Council,People & Communities,Independent Sector Placements,Services,10/01/2020,30257956,2371.20,Revenue,Deafblind Uk Trading Ltd,Home Care
Peterborough City Council,People & Communities,Independent Sector Placements,Services,10/01/2020,30257957,1106.56,Revenue,Deafblind Uk Trading Ltd,Home Care
Peterborough City Council,People & Communities,Independent Sector Placements,Services,10/01/2020,30257958,2845.44,Revenue,Deafblind Uk Trading Ltd,Home Care
Peterborough City Council,People & Communities,Independent Sector Placements,Services,10/01/2020,30257959,1620.32,Revenue,Deafblind Uk Trading Ltd,Home Care
Peterborough City Council,People & Communities,Independent Sector Placements,Services,10/01/2020,30257960,1738.88,Revenue,Deafblind Uk Trading Ltd,Home Care
Peterborough City Council,People & Communities,Independent Sector Placements,Services,10/01/2020,30257961,1185.60,Revenue,Deafblind Uk Trading Ltd,Home Care
Peterborough City Council,People & Communities,Independent Sector Placements,Services,10/01/2020,30257962,1185.60,Revenue,Deafblind Uk Trading Ltd,Home Care
Peterborough City Council,Place & Economy,Transport & Infrastructure Commissioning,Energy Costs,10/01/2020,30258820,1273.30,Revenue,E.ON Energy,Electricity
Peterborough City Council,People & Communities,Access to Resources & Specialist Commissioning,Schools,10/01/2020,30257432,3764.02,Revenue,Eastern Family Services,Boarding Out Fees
Peterborough City Council,People & Communities,Housing,Services,10/01/2020,30258212,9067.29,Revenue,Eastfield Guesthouse,Temporary Accommodation Costs
Peterborough City Council,People & Communities,Housing,Services,10/01/2020,30258213,12212.46,Revenue,Eastfield Guesthouse,Temporary Accommodation Costs
Peterborough City Council,People & Communities,Access to Resources & Specialist Commissioning,Schools,10/01/2020,30252186,12141.43,Revenue,Ethelbert Childrens Services,Boarding Out Fees
Peterborough City Council,People & Communities,Access to Resources & Specialist Commissioning,Schools,10/01/2020,30252188,12383.74,Revenue,Ethelbert Childrens Services,Boarding Out Fees
Peterborough City Council,People & Communities,Access to Resources & Specialist Commissioning,Schools,10/01/2020,30252189,15451.41,Revenue,Ethelbert Childrens Services,Boarding Out Fees
Peterborough City Council,People & Communities,Access to Resources & Specialist Commissioning,Schools,10/01/2020,30255350,12546.14,Revenue,Ethelbert Childrens Services,Boarding Out Fees
Peterborough City Council,People & Communities,Access to Resources & Specialist Commissioning,Schools,10/01/2020,30255351,12796.53,Revenue,Ethelbert Childrens Services,Boarding Out Fees
Peterborough City Council,People & Communities,Access to Resources & Specialist Commissioning,Schools,10/01/2020,30255353,15966.46,Revenue,Ethelbert Childrens Services,Boarding Out Fees
Peterborough City Council,People & Communities,Access to Resources & Specialist Commissioning,Schools,10/01/2020,30259234,12796.53,Revenue,Ethelbert Childrens Services,Boarding Out Fees
Peterborough City Council,People & Communities,Access to Resources & Specialist Commissioning,Schools,10/01/2020,30259235,12546.14,Revenue,Ethelbert Childrens Services,Boarding Out Fees
Peterborough City Council,People & Communities,Access to Resources & Specialist Commissioning,Schools,10/01/2020,30259130,24595.00,Revenue,Exeter Royal Academy for Deaf Education,Boarding Out Fees
Peterborough City Council,People & Communities,Access to Resources & Specialist Commissioning,Schools,10/01/2020,30259131,18074.19,Revenue,Exeter Royal Academy for Deaf Education,Boarding Out Fees
Peterborough City Council,People & Communities,Access to Resources & Specialist Commissioning,Schools,10/01/2020,30258332,2750.00,Revenue,Florinee Homes Ltd,Boarding Out Fees
Peterborough City Council,People & Communities,Access to Resources & Specialist Commissioning,Schools,10/01/2020,30257671,3626.69,Revenue,Foster Care Associates Ltd FCA,Boarding Out Fees
Peterborough City Council,People & Communities,Access to Resources & Specialist Commissioning,Schools,10/01/2020,30257672,3555.70,Revenue,Foster Care Associates Ltd FCA,Boarding Out Fees
Peterborough City Council,People & Communities,Access to Resources & Specialist Commissioning,Schools,10/01/2020,30257673,4380.30,Revenue,Foster Care Associates Ltd FCA,Boarding Out Fees
Peterborough City Council,People & Communities,Access to Resources & Specialist Commissioning,Schools,10/01/2020,30257676,3202.30,Revenue,Foster Care Associates Ltd FCA,Boarding Out Fees
Peterborough City Council,People & Communities,Access to Resources & Specialist Commissioning,Schools,10/01/2020,30257677,4248.89,Revenue,Foster Care Associates Ltd FCA,Boarding Out Fees
Peterborough City Council,People & Communities,Access to Resources & Specialist Commissioning,Schools,10/01/2020,30257679,3113.33,Revenue,Foster Care Associates Ltd FCA,Boarding Out Fees
Peterborough City Council,People & Communities,Access to Resources & Specialist Commissioning,Schools,10/01/2020,30257680,3844.00,Revenue,Foster Care Associates Ltd FCA,Boarding Out Fees
Peterborough City Council,People & Communities,Access to Resources & Specialist Commissioning,Schools,10/01/2020,30257681,4292.69,Revenue,Foster Care Associates Ltd FCA,Boarding Out Fees
Peterborough City Council,People & Communities,Access to Resources & Specialist Commissioning,Schools,10/01/2020,30258077,3498.66,Revenue,Fostering Solutions Limited,Boarding Out Fees
Peterborough City Council,People & Communities,Access to Resources & Specialist Commissioning,Schools,10/01/2020,30258078,3548.26,Revenue,Fostering Solutions Limited,Boarding Out Fees
Peterborough City Council,People & Communities,Access to Resources & Specialist Commissioning,Schools,10/01/2020,30258079,3609.33,Revenue,Fostering Solutions Limited,Boarding Out Fees
Peterborough City Council,People & Communities,Access to Resources & Specialist Commissioning,Schools,10/01/2020,30258080,2860.77,Revenue,Fostering Solutions Limited,Boarding Out Fees
Peterborough City Council,People & Communities,Access to Resources & Specialist Commissioning,Schools,10/01/2020,30258081,3541.44,Revenue,Fostering Solutions Limited,Boarding Out Fees
Peterborough City Council,People & Communities,Access to Resources & Specialist Commissioning,Schools,10/01/2020,30258082,3541.44,Revenue,Fostering Solutions Limited,Boarding Out Fees
Peterborough City Council,People & Communities,Access to Resources & Specialist Commissioning,Schools,10/01/2020,30258083,4960.00,Revenue,Fostering Solutions Limited,Boarding Out Fees
Peterborough City Council,People & Communities,Access to Resources & Specialist Commissioning,Schools,10/01/2020,30258084,4011.97,Revenue,Fostering Solutions Limited,Boarding Out Fees
Peterborough City Council,People & Communities,Access to Resources & Specialist Commissioning,Schools,10/01/2020,30258085,4011.97,Revenue,Fostering Solutions Limited,Boarding Out Fees
Peterborough City Council,People & Communities,Access to Resources & Specialist Commissioning,Schools,10/01/2020,30258086,6009.66,Revenue,Fostering Solutions Limited,Boarding Out Fees
Peterborough City Council,People & Communities,Access to Resources & Specialist Commissioning,Schools,10/01/2020,30258088,4960.00,Revenue,Fostering Solutions Limited,Boarding Out Fees
Peterborough City Council,People & Communities,Access to Resources & Specialist Commissioning,Schools,10/01/2020,30258089,2212.17,Revenue,Fostering Solutions Limited,Boarding Out Fees
Peterborough City Council,People & Communities,Early Years & Quality Improvement,Services,10/01/2020,30260033,706.20,Revenue,Gladstone Primary Academy,Grant Payment
Peterborough City Council,People & Communities,Independent Sector Placements,Services,10/01/2020,30259740,882.28,Revenue,Hales Group Ltd,Home Care
Peterborough City Council,People & Communities,Independent Sector Placements,Services,10/01/2020,8000158535,1027.50,Revenue,Hales Group Ltd,Home Care
Peterborough City Council,People & Communities,Independent Sector Placements,Services,10/01/2020,8000158536,882.28,Revenue,Hales Group Ltd,Home Care
Peterborough City Council,People & Communities,Independent Sector Placements,Services,10/01/2020,8000158537,878.78,Revenue,Hales Group Ltd,Home Care
Peterborough City Council,People & Communities,Independent Sector Placements,Services,10/01/2020,8000158585,725.06,Revenue,Hales Group Ltd,Home Care
Peterborough City Council,People & Communities,Independent Sector Placements,Services,10/01/2020,8000158586,1330.92,Revenue,Hales Group Ltd,Home Care
Peterborough City Council,People & Communities,Independent Sector Placements,Services,10/01/2020,8000158587,976.84,Revenue,Hales Group Ltd,Home Care
Peterborough City Council,People & Communities,Independent Sector Placements,Services,10/01/2020,30259749,2600.00,Revenue,Hatley Court Haven Ltd,Residential Care
Peterborough City Council,People & Communities,Independent Sector Placements,Services,10/01/2020,30259129,2468.36,Revenue,Healthcare Homes Group Ltd,Residential Care
Peterborough City Council,People & Communities,Independent Sector Placements,Services,10/01/2020,30259135,1057.40,Revenue,Healthcare Homes Group Ltd,Residential Care
Peterborough City Council,People & Communities,Independent Sector Placements,Services,10/01/2020,30259136,1623.08,Revenue,Healthcare Homes Group Ltd,Residential Care
Peterborough City Council,People & Communities,Independent Sector Placements,Services,10/01/2020,30259137,1335.71,Revenue,Healthcare Homes Group Ltd,Respite Care
Peterborough City Council,People & Communities,Independent Sector Placements,Services,10/01/2020,30259138,1684.20,Revenue,Healthcare Homes Group Ltd,Residential Care
Peterborough City Council,People & Communities,Independent Sector Placements,Services,10/01/2020,30259139,1083.64,Revenue,Healthcare Homes Group Ltd,Residential Care
Peterborough City Council,People & Communities,Access to Resources & Specialist Commissioning,Schools,10/01/2020,30254366,19500.00,Revenue,Hillcrest Children Serv(2)Ltd t/a Options BESD (1) Ltd,Boarding Out Fees
Peterborough City Council,People & Communities,Access to Resources & Specialist Commissioning,Schools,10/01/2020,30257727,20150.00,Revenue,Hillcrest Children Serv(2)Ltd t/a Options BESD (1) Ltd,Boarding Out Fees
Peterborough City Council,Resources,Commercial Propety,Services,10/01/2020,30259795,550.00,Revenue,HM Revenues & Customs,Legal Costs
Peterborough City Council,Corporate,Corporate,Non Revenue,10/01/2020,30257322,24090.00,Balance Sheet,JE & VM Dalton Ltd,Third Party Payments 
Peterborough City Council,People & Communities,External Education Placements,Services,10/01/2020,30259743,594.00,Revenue,Kent County Council,Out Of Area Education Costs
Peterborough City Council,People & Communities,Access to Resources & Specialist Commissioning,Schools,10/01/2020,30257490,2485.75,Revenue,Key2 Futures Limited,Boarding Out Fees
Peterborough City Council,People & Communities,Access to Resources & Specialist Commissioning,Schools,10/01/2020,30260089,1690.31,Revenue,Key2 Futures Limited,Boarding Out Fees
Peterborough City Council,People & Communities,Home Services Delivery Model,Other Establishments,10/01/2020,30258456,44166.66,Revenue,Longhurst Group Limited,Grant-Third Party
Peterborough City Council,People & Communities,Independent Sector Placements,Services,10/01/2020,30257953,9117.85,Revenue,Longueville Court (Barchester),Residential Care
Peterborough City Council,People & Communities,Home Services Delivery Model,Customer and client receipts - Fees & Charges,10/01/2020,30258123,-90.00,Revenue,M J Greaves,Home Care
